Cogmind - Beta 12 @@@ ROGUE MODE // 2024.01.04 @ 19:14:38 Player: Trione Result: Destroyed by G-73 Enforcer with Heavy Laser Performance ------------- Evolutions (8) 4000 Regions Visited (34) 6800 Robots Destroyed (439) 2195 Value Destroyed (21520) 21520 Prototype IDs (79) 1580 Alien Tech Used (11) 2200 Bonus (8725) 8725 TOTAL SCORE: 47020 Bonus ------- Triggered High Security 500 High Alert Combat Kills 3814 Follower Combat Kills 2400 Network Hubs Disabled 400 Met Data Miner 300 Met Imprinter 300 Met Zhirov 300 Built Enhanced Grunts 300 Met R17 at Cetus 500 Scanned by Researcher 500 Friendly Fire -589 Cogmind --------- Core Integrity 0/1450 Matter 300/300 Energy 32/700 System Corruption 17% Temperature Cool (9) Movement Core (1450) Ox28 Location -2/Section 7 Parts ------- > --- POWER (2) -------- (None) > --- PROPULSION (4) --- (None) > --- UTILITY (14) ----- 2N-1CE's Frost Array Huge Storage Unit Experimental Energy Well Advanced Visual Processing Unit Experimental Terrain Scanner Advanced Target Analyzer Advanced Target Analyzer System Mapper > --- WEAPON (4) ------- CR-A16's Behemoth Slayer > --- INVENTORY (25) --- Advanced Dynamic Insulation System Welding Torch Sigix Broadsword Peak State ------------ > --- POWER ------------ Vortex Chain Reactor > --- PROPULSION ------- Enhanced Armored Heavy Treads High-density Centrium Heavy Treads > --- UTILITY ---------- Huge Storage Unit Advanced Visual Processing Unit Advanced Signal Interpreter Transport Network Coupler Improved Targeting Computer Experimental Targeting Computer Advanced Target Analyzer Quantum Capacitor SHELL Armor Experimental Force Field System Mapper > --- WEAPON ----------- Nova Cannon Multirail Sigix Broadsword > --- INVENTORY -------- Quantum Reactor Enhanced Armored Heavy Treads High-density Centrium Heavy Treads 2N-1CE's Frost Array Experimental Energy Well Experimental Energy Well Improved Matter Compressor Experimental Terrain Scanner Energy Filter Thermal Barrier Experimental EM Disruption Field Advanced Force Field Advanced Dynamic Insulation System High-powered Transdimensional Reconstructor Long-range Phase Cannon Potential Cannon Omega Cannon Fusion Bomb Launcher Core Stripper CR-A16's Behemoth Slayer [Rating: 221] Favorites ----------- Power Improved Deuterium Engine Engine Improved Deuterium Engine Power Core Micro Fission Core Reactor Particle Reactor Propulsion Compact Wheel Treads Medium Treads Leg Armored Leg Wheel Compact Wheel Hover Unit Antigrav System Utility Huge Storage Unit Device Improved Sensor Array Storage Huge Storage Unit Processor Advanced Signal Interpreter Hackware Improved Hacking Suite Protection Powered Armor Artifact Phase Redirector Weapon Phase Cannon Energy Gun Quantum Rifle Energy Cannon Phase Cannon Ballistic Gun Coil Gun Ballistic Cannon Gauss Cannon Launcher Improved Grenade Launcher Special Weapon Mining Laser Impact Weapon Impact Mace Slashing Weapon Sigix Broadsword Piercing Weapon CR-A16's Behemoth Slayer Special Melee Weapon Advanced Datajack Build | -11 -10 -10 -9 -9 -9 -8 -8 -7 -7 -7 -7 -6 -6 -6 -6 -6 -5 -5 -5 -5 -5 -5 -4 -4 -4 -4 -4 -4 -3 -3 -3 -2 -2 -2 ------- Run | Jun Mat Min Mat Min Exi Min Mat Fac Low Low Zio Pro Fac Low Low Dat Pro Fac Ext Cet Arc Hub Fac Was Fac Upp Upp Zhi Pro Res Qua Res Tes Sec Slots Evolved 16 | . . . 2 . . . 2 2 . . . . 2 . . . . 2 . . . . 2 . . . . . . 2 . 2 . . Power 1 | . . . . . . . . . . . . . 1 . . . . . . . . . . . . . . . . . . . . . Propulsion 2 | . . . . . . . 1 . . . . . . . . . . 1 . . . . . . . . . . . . . . . . Utility 11 | . . . 2 . . . 1 2 . . . . 1 . . . . 1 . . . . 2 . . . . . . 1 . 1 . . Weapon 2 | . . . . . . . . . . . . . . . . . . . . . . . . . . . . . . 1 . 1 . . Parts Attached 874 | 6 11 9 28 2 . 2 66 50 20 1 4 24 34 26 12 1 12 31 23 13 28 48 12 6 21 4 5 10 27 86 91 8 85 68 Power 52 | 1 1 . 1 . . . 2 1 . . . . 1 1 . . . 2 . 1 1 1 . . . 1 . 2 2 8 9 1 6 10 Engine 7 | 1 1 . 1 . . . 2 1 . . . . 1 . . . . . . . . . . . . . . . . . . . . . Core 3 | . . . . . . . . . . . . . . 1 . . . 2 . . . . . . . . . . . . . . . . Reactor 42 | . . . . . . . . . . . . . . . . . . . . 1 1 1 . . . 1 . 2 2 8 9 1 6 10 Propulsion 158 | 2 3 4 4 . . . 12 17 4 . . 2 4 2 . . 1 4 5 5 8 12 3 . 3 . . . 6 21 16 . 11 9 Treads 73 | 1 2 1 2 . . . 6 6 2 . . 2 . . . . . 1 2 2 6 4 1 . . . . . 4 13 9 . 7 2 Leg 11 | . . . . . . . . . . . . . 1 2 . . . . 1 1 . . . . . . . . . . . . . 6 Wheel 73 | 1 1 3 2 . . . 6 11 2 . . . 3 . . . 1 2 2 2 2 8 2 . 3 . . . 2 8 7 . 4 1 Hover 1 | . . . . . . . . . . . . . . . . . . 1 . . . . . . . . . . . . . . . . Flight . | . . . . . . . . . . . . . . . . . . . . . . . . . . . . . . . . . . . Utility 362 | 1 4 1 10 . . . 27 18 10 1 4 11 19 13 8 1 1 21 5 4 17 16 6 5 10 1 1 6 11 28 35 3 43 21 Device 225 | . 1 . 1 . . . 11 8 5 1 2 7 9 6 8 1 1 18 4 1 12 7 5 3 8 . 1 3 7 16 25 2 37 15 Storage 23 | 1 2 . 1 . . . 1 . . . . . 1 2 . . . 1 . . 2 1 . . 1 . . 1 1 1 2 . 2 3 Processor 20 | . . . . . . . 1 1 1 . . . 3 . . . . . . . . 1 . . 1 . . . 1 5 1 1 1 3 Hackware 9 | . . . . . . . . 2 . . . . 1 . . . . . . . 1 2 . . . . . . . 1 . . 2 . Protection 84 | . 1 1 8 . . . 14 7 4 . 2 4 5 5 . . . 2 1 3 2 5 1 2 . 1 . 2 2 5 6 . 1 . Artifact 1 | . . . . . . . . . . . . . . . . . . . . . . . . . . . . . . . 1 . . . Weapon 302 | 2 3 4 13 2 . 2 25 14 6 . . 11 10 10 4 . 10 4 13 3 2 19 3 1 8 2 4 2 8 29 31 4 25 28 Energy Gun 36 | . 2 2 4 . . . 1 1 . . . . . . . . . 1 . . . . . . . . . . . 7 4 1 3 10 Energy Cannon 83 | . . . 4 1 . 1 8 3 1 . . . 5 2 . . 6 1 2 . 1 4 1 . 3 1 2 . 3 6 11 . 7 10 Ballistic Gun 56 | 2 . . 1 . . . 8 3 2 . . 2 1 3 2 . . . 2 3 . 4 . . 1 . . . 1 7 10 1 3 . Ballistic Cannon 30 | . . . . . . . 1 . 1 . . 1 . . . . . 2 3 . 1 6 1 . 1 1 2 . 2 1 1 1 1 4 Launcher 49 | . . . 3 1 . 1 4 1 . . . 6 3 4 2 . 4 . 3 . . 5 1 1 1 . . . . 4 2 . 2 1 Special Weapon 3 | . 1 2 . . . . . . . . . . . . . . . . . . . . . . . . . . . . . . . . Impact Weapon 20 | . . . . . . . 1 6 2 . . 2 1 . . . . . 3 . . . . . . . . . . 2 1 . 2 . Slashing Weapon 16 | . . . 1 . . . 2 . . . . . . . . . . . . . . . . . 1 . . 1 1 1 . 1 6 2 Piercing Weapon 6 | . . . . . . . . . . . . . . 1 . . . . . . . . . . . . . . 1 1 1 . 1 1 Special Melee Weapon 3 | . . . . . . . . . . . . . . . . . . . . . . . . . 1 . . 1 . . 1 . . . Unidentified Prototypes 47 | . . . 1 . . . 2 1 . . 1 1 . . . . . 1 . 3 . 3 . . 2 . . 3 . 4 4 1 19 1 Corrupted Parts 1 | . . . . . . . . . . . . . . . . . . . . . 1 . . . . . . . . . . . . . System Corruption 10 | . . . . . . . . . . . . . . . . . . . . . 10 . . . . . . . . . . . . . Parts Lost 148 | . 3 1 1 . . . 6 1 3 . . 5 3 5 . . 1 2 3 . 1 3 1 4 1 . . . 8 39 6 . 6 45 Power 20 | . 1 . . . . . . . . . . . . 1 . . . 1 . . . . . . . . . . 1 6 . . 2 8 Propulsion 35 | . 1 . . . . . 1 . 2 . . 2 2 . . . 1 1 1 . 1 1 1 1 . . . . . 9 1 . 1 9 Utility 63 | . . 1 1 . . . 5 1 . . . 2 1 4 . . . . 2 . . 1 . 3 1 . . . 5 16 5 . 1 14 Weapon 30 | . 1 . . . . . . . 1 . . 1 . . . . . . . . . 1 . . . . . . 2 8 . . 2 14 Highest Loss Streak 16 | . 1 1 1 . . . 5 1 2 . . 3 1 3 . . 1 1 2 . 1 1 1 2 1 . . . 2 8 4 . 2 16 To Critical Strikes . | . . . . . . . . . . . . . . . . . . . . . . . . . . . . . . . . . . . Average Slot Usage (%) 92 | . 98 100 99 100 100 100 99 91 99 100 99 96 93 91 91 81 93 95 99 100 95 93 94 93 89 90 90 89 88 91 91 86 79 73 Engine 4 | . 14 14 11 11 11 11 8 6 7 7 7 7 12 6 6 6 6 2 . . . . . . . . . . . . . . . . Core 1 | . . . . . . . . . . . . . . 5 6 6 6 7 11 9 1 . . . . . . . . . . . . . Reactor 3 | . . . . . . . . . . . . . . . . . . . . 1 9 11 10 10 10 10 10 10 10 7 8 8 7 5 Treads 4 | . 14 9 9 11 11 11 4 6 . . . 6 2 . . . . 1 2 6 17 6 1 . . . . . . 10 5 4 5 6 Leg 1 | . . . . . . . . . . . . . 4 12 12 12 12 8 2 . . . . . . . . . . . . . . 1 Wheel 11 | . 13 18 12 11 11 11 22 15 22 23 23 15 11 6 6 6 6 9 15 14 1 9 13 14 9 10 10 10 9 2 7 8 5 . Device 13 | . 8 . . . . . 11 9 12 7 7 9 18 11 17 18 18 21 19 12 17 13 19 19 18 19 20 19 21 17 16 24 12 15 Storage 7 | . 14 14 11 11 11 11 9 7 7 7 7 7 6 10 6 6 6 5 5 5 7 5 5 5 8 5 5 5 6 12 4 4 4 6 Processor 12 | . . . . . . . 5 3 7 15 15 14 12 12 12 12 12 11 11 11 11 15 15 15 17 20 20 20 13 14 22 20 23 19 Hackware 5 | . . . . . . . . 5 7 7 7 7 5 6 6 6 6 5 5 5 5 9 10 10 10 10 10 10 10 9 6 4 4 4 Protection 10 | . 4 14 32 33 33 33 18 17 16 15 14 13 6 5 6 6 6 7 13 20 10 9 10 10 5 5 5 5 7 2 3 . 2 1 Energy Gun 1 | . 11 23 7 . . . . . . . . . . . . . . . . . . . . . . . . . . 2 2 2 3 5 Energy Cannon 5 | . . . 12 21 22 20 12 3 4 . . . 7 6 6 . 11 6 5 3 2 3 1 2 4 4 4 . 6 2 3 3 3 3 Ballistic Gun 2 | . 7 . . . . . 4 4 1 . . . 1 4 2 . . . 1 3 5 1 5 5 5 5 5 . 1 4 5 . 1 1 Ballistic Cannon 1 | . . . . . . . . . 2 7 7 8 1 . . . . 3 1 3 2 4 2 . . . . . 1 . . 1 . . Impact Weapon 1 | . . . . . . . . 5 4 7 7 2 2 . . . . . 2 . . . . . . . . . . . . . . . Naked Turns . | . . . . . . . . . . . . . . . . . . . . . . . . . . . . . . . . . . . Heaviest Build 205 | 11 31 31 49 49 49 49 126 123 126 115 131 132 143 151 137 122 136 152 162 167 177 172 173 173 159 161 152 152 158 170 175 178 205 193 Greatest Support 170 | 20 20 40 26 12 12 12 84 84 48 48 48 48 32 19 19 19 19 39 39 36 136 136 54 54 65 65 65 65 65 169 166 22 170 170 Greatest Overweight (x) 15 | . 1 1 4 4 4 4 5 9 2 2 2 4 7 15 7 6 7 14 5 6 10 6 6 3 2 2 2 2 4 7 7 8 7 14 Average Overweight (x) 3 | . . . 2 4 4 4 2 3 2 2 2 3 4 6 6 6 7 4 3 4 1 4 3 2 2 2 2 2 2 1 3 7 4 . Largest Inventory Capacity 25 | 8 15 15 15 15 15 15 25 25 25 25 25 25 25 25 25 25 25 25 25 25 25 25 25 25 25 25 25 25 25 25 25 25 25 25 Average Capacity 23 | 6 11 15 15 15 15 15 22 25 25 25 25 25 25 25 25 25 25 25 25 25 25 25 25 25 25 25 25 25 25 25 25 25 25 25 Most Carried 25 | 4 15 15 15 15 15 15 25 25 25 25 25 25 25 25 23 24 25 25 25 25 25 25 25 25 25 24 24 25 25 25 25 25 25 25 Average Carried 22 | 2 10 14 14 15 15 15 20 24 24 25 24 21 24 20 22 17 24 24 24 24 24 24 24 24 23 24 24 19 20 18 24 23 24 20 Final Capacity 25 | 8 15 15 15 15 15 15 25 25 25 25 25 25 25 25 25 25 25 25 25 25 25 25 25 25 25 25 25 25 25 25 25 25 25 25 Final Carried 25 | 4 15 15 15 15 15 15 25 25 25 25 25 23 25 21 22 24 25 25 25 25 25 25 25 23 24 24 24 25 18 25 25 25 25 4 Class Distribution -------------------- 58% | Scavenger-Mutant 24% | Mutant 5% | Scavenger-Skirmisher 3% | Scavenger-Assassin 3% | Assassin 3% | Scavenger-Gunner Dominant Class ---------------- Mutant | -10/Materials Mutant | -10/Mines Mutant | -9/Materials Mutant | -9/Mines Mutant | -9/Exiles Mutant | -8/Mines Mutant | -8/Materials Mutant | -7/Factory Scavenger-Mutant | -7/Lower Caves Scavenger-Mutant | -7/Lower Caves Scavenger-Mutant | -7/Zion Mutant | -6/Proximity Caves Scavenger-Mutant | -6/Factory Scavenger-Mutant | -6/Lower Caves Scavenger-Mutant | -6/Lower Caves Scavenger-Mutant | -6/Data Miner Scavenger-Mutant | -5/Proximity Caves Scavenger-Mutant | -5/Factory Mutant | -5/Extension Commander-Mutant | -5/Cetus Scavenger-Mutant | -5/Archives Scavenger-Mutant | -5/Hub_04(d) Scavenger-Skirmisher | -4/Factory Scavenger-Skirmisher | -4/Waste Scavenger-Mutant | -4/Factory Scavenger-Mutant | -4/Upper Caves Scavenger-Mutant | -4/Upper Caves Scavenger-Assassin | -4/Zhirov Scavenger-Skirmisher | -3/Proximity Caves Scavenger-Mutant | -3/Research Scavenger-Mutant | -3/Quarantine Scavenger-Mutant | -2/Research Scavenger-Mutant | -2/Testing Scavenger-Mutant | -2/Section 7 Resources | -11 -10 -10 -9 -9 -9 -8 -8 -7 -7 -7 -7 -6 -6 -6 -6 -6 -5 -5 -5 -5 -5 -5 -4 -4 -4 -4 -4 -4 -3 -3 -3 -2 -2 -2 ----------- Run | Jun Mat Min Mat Min Exi Min Mat Fac Low Low Zio Pro Fac Low Low Dat Pro Fac Ext Cet Arc Hub Fac Was Fac Upp Upp Zhi Pro Res Qua Res Tes Sec Matter Collected 15876 | 191 363 75 365 30 . 30 861 889 469 73 90 336 642 380 156 . 446 492 485 248 527 1069 174 210 516 115 162 348 884 1415 1072 183 1611 969 Remotely . | . . . . . . . . . . . . . . . . . . . . . . . . . . . . . . . . . . . Salvage Created 23659 | . 390 89 842 112 . 23 1644 1345 49 159 . 247 770 534 312 . 201 545 662 119 583 1250 149 222 794 112 159 348 480 2428 2230 281 3030 3550 Parts 1040 | . 20 10 58 4 . 6 81 62 1 . . 15 29 15 14 . 18 24 40 6 32 41 3 . 41 2 5 7 23 110 137 7 103 126 Haulers Intercepted 18 | . 2 . 2 . . . 4 . . . . . 1 . . . . 2 . . . 5 1 . 1 . . . . . . . . . Recyclers Shooed 20 | . . . 3 . . . 1 . . . . . 3 . . . . . 1 . . 2 1 . 2 . . . . 3 2 . . 2 Parts Field Recycled . | . . . . . . . . . . . . . . . . . . . . . . . . . . . . . . . . . . . Retrieved Matter . | . . . . . . . . . . . . . . . . . . . . . . . . . . . . . . . . . . . Parts Self-Destructed 90 | . . . . . . . . . 1 . . 12 . 13 8 . 24 . . . . . . . . 1 5 3 23 . . . . . Prevented 3 | . . . . . . . . . . . . . . . 1 . 2 . . . . . . . . . . . . . . . . . Kills | -11 -10 -10 -9 -9 -9 -8 -8 -7 -7 -7 -7 -6 -6 -6 -6 -6 -5 -5 -5 -5 -5 -5 -4 -4 -4 -4 -4 -4 -3 -3 -3 -2 -2 -2 ------- Run | Jun Mat Min Mat Min Exi Min Mat Fac Low Low Zio Pro Fac Low Low Dat Pro Fac Ext Cet Arc Hub Fac Was Fac Upp Upp Zhi Pro Res Qua Res Tes Sec Combat Hostiles Destroyed 345 | . 6 4 23 4 . 3 31 18 1 . . 14 13 7 8 . 13 6 8 1 4 13 2 1 7 1 3 . 9 28 29 3 32 53 Melee 19 | . . . 2 . . . 1 3 . . . . . . . . . . . . . . . . . . . . . 1 1 1 6 4 Guns 101 | . 6 4 6 . . . 7 4 . . . . 2 2 . . . . . . 1 3 . . 5 1 1 . 3 19 7 1 8 21 Cannons 103 | . . . 4 3 . . 16 6 1 . . 2 4 1 1 . 2 6 6 . 3 3 . . 1 . 2 . 3 3 14 . 6 16 AOE 90 | . . . 10 1 . 3 7 2 . . . 12 7 4 7 . 11 . 2 . . 7 2 1 1 . . . . 2 . . 4 7 Classes Destroyed 29 | . 3 3 2 . . . 7 1 1 1 . . 1 . . . . . . . . 1 . 1 . . . . 1 . 1 . 3 3 Worker 20 | . . . . . . . 2 2 . . . . 1 . . . . 2 1 . . 1 2 . . . . . . 5 1 . 2 1 Builder 12 | . 1 . . . . . . 1 . . . . 1 . . . . . 1 . . 1 . . . . . . . 1 1 . 1 4 Tunneler 4 | . . 1 . . . . . 1 . . . . . . . . . . 1 . . . . . . . . . . 1 . . . . Hauler 18 | . 2 . 2 . . . 4 . . . . . 1 . . . . 2 . . . 5 1 . 1 . . . . . . . . . Recycler 22 | . . . 2 . . . 1 7 . . . . 1 . . . . . 1 . . 1 . . 2 . . . . 2 1 . 3 1 Carrier 1 | . . . . . . . . . . . . . . . . . . . . . . . . . . . . . . . . . . 1 Mechanic 1 | . . . . . . . . . . . . . . . . . . . . . . . . . . . . . . . . . . 1 Operator 9 | . . . . . . . 1 . . . . . . . . . . . . . 7 . . . . . . . . . . . . 1 Drone 2 | . . . . . . . . . . . . . . . . . . . . . . . . . . . . . 2 . . . . . Watcher 8 | . . . . . . . 1 . . . . . 1 . . . . 1 . . . . . . 1 . . . . 2 1 . . 1 Swarmer 82 | . . 3 8 . . 3 4 4 . . . 7 4 . 8 . 13 . 2 . . 5 . . . . 1 . . 3 . . 5 12 Saboteur 2 | . . . . . . . . . . . . . . . . . . . . . . . . . . . . . . . . . . 2 Grunt 106 | . 6 . 9 2 . . 11 8 . . . 4 3 5 . . . . 2 . . 4 . . 1 . 1 . . 7 10 2 10 21 Brawler 9 | . . . . . . . . . . . . . 1 2 . . . . . . . . . . . . . . . . 1 . . 5 Duelist 3 | . . . . . . . 1 . . . . . . . . . . . . . . . . . . . . . . . 1 . . 1 Protector 1 | . . . . . . . . . . . . . . . . . . . . . . 1 . . . . . . . . . . . . Researcher 1 | . . . . . . . . . . . . . . . . . . . . . . . . . . . . . . . . . 1 . Sentry 36 | . . . 6 . . . 9 3 . . . 1 . . . . . . 2 . 4 . . . 1 1 1 . 1 4 . 1 . 2 Specialist 4 | . . . . . . . 2 . . . . . 2 . . . . . . . . . . . . . . . . . . . . . Hunter 28 | . . . . . . . 3 1 . . . 2 1 . . . . . 1 1 . . 2 . 2 . . . . 9 . . 2 4 Programmer 54 | . . . . . . . . 2 . . . . 2 . . . . 6 . . . . . . 3 . . . 5 5 16 . 12 3 Heavy 1 | . . . . . . . 1 . . . . . . . . . . . . . . . . . . . . . . . . . . . Q-Series 3 | . . . . . . . . . . . . . . . . . . . . . . . . . . . . . . . . . 1 2 Behemoth 3 | . . . . . . . . . 1 . . . . . . . . . 1 . . . . . . . . . 1 . . . . . Compactor 1 | . . . . . . . . . . . . . . . . . . . . . . . . 1 . . . . . . . . . . S7 Guard 1 | . . . . . . . . . . . . . . . . . . . . . . . . . . . . . . . . . . 1 Lightning 3 | . . . . . . . . . . . . . . . . . . . . . . 3 . . . . . . . . . . . . Alpha 7 1 | . . . . . . . . . . . . . . . . . . . . . . . . . . . . . . . 1 . . . Fortress 1 | . . . . . . . . . . . . . . . . . . . . . . . . . . . . . . . . . 1 . Protovariant Y 1 | . . . . . . . . . . . . . . . . . . . . . . . . . . . . . . . . . 1 . Packrat 3 | . . . . . . . . . . . . . . 2 1 . . . . . . . . . . . . . . . . . . . Samaritan 7 | . . . . . . . . . . 3 . 1 . 2 . . . . . . . . . . . 1 . . . . . . . . Assembled 3 | . . 1 . 2 . . . . . . . . . . . . . . . . . . . . . . . . . . . . . . Thug 1 | . . . . . . . . . . . . . . . . . . . . 1 . . . . . . . . . . . . . . Butcher 1 | . . . . . . . . . . . . . . . . . . . 1 . . . . . . . . . . . . . . . Best Kill Streak 11 | . 2 3 11 1 . 3 4 8 1 . . 4 4 4 4 . 5 2 4 1 4 5 4 1 4 1 2 . 4 6 5 2 6 9 Combat Bots Only 11 | . 1 3 11 1 . 3 4 5 1 . . 4 4 4 4 . 5 2 4 1 2 5 2 1 4 1 2 . 4 5 4 2 5 8 Max Kills in Single Turn 4 | . 2 1 2 1 . 3 3 2 1 1 . 2 3 2 3 . 4 1 2 1 1 3 1 1 1 1 1 . 1 2 1 1 2 4 Gunslinging 1 | . . . . . . . . . . . . . . . . . . . . . . . . . . . . . . . . . . 1 Exploded 4 | . . . 2 1 . 3 3 1 . . . 2 3 2 3 . 4 . 1 . . 3 1 1 1 . . . . 2 . . 2 3 Melee 1 | . . . 1 . . . 1 1 . . . . . . . . . . . . . . . . . . . . . 1 1 1 1 1 Uniques/NPCs Destroyed . | . . . . . . . . . . . . . . . . . . . . . . . . . . . . . . . . . . . Combat | -11 -10 -10 -9 -9 -9 -8 -8 -7 -7 -7 -7 -6 -6 -6 -6 -6 -5 -5 -5 -5 -5 -5 -4 -4 -4 -4 -4 -4 -3 -3 -3 -2 -2 -2 -------- Run | Jun Mat Min Mat Min Exi Min Mat Fac Low Low Zio Pro Fac Low Low Dat Pro Fac Ext Cet Arc Hub Fac Was Fac Upp Upp Zhi Pro Res Qua Res Tes Sec Damage Taken 39592 | . 572 173 628 31 . 78 2228 1386 428 . . 973 1068 765 147 . 240 524 632 196 227 1827 228 215 590 25 91 . 1653 6134 2463 97 5169 10804 Core 3519 | . 122 . 161 11 . 10 181 145 66 . . 113 120 78 . . . 62 . 66 . 81 15 . 69 . . . 77 600 144 9 94 1295 Absorbed by Shields 5962 | . . . . . . . . . . . . . . 49 71 . . 301 150 108 . . . . . . . . . . 1055 78 2050 2100 Reduced by Siege Mode 624 | . . . . . . . . . . . . . . . . . . . . . . . . . . . . . 28 6 20 9 166 395 Redirected to Shielding 344 | . . . 17 3 . . 34 28 . . . 30 19 52 . . . . . . . . . . . . . . 140 21 . . . . Regen/Repaired (Parts) 5340 | . . . . . . . 84 . . . . . 568 . . . . . . . . . . . 174 . . . . . 835 39 3134 506 Core Remaining (%) 66 | 100 . 51 . . . 54 67 . . . . 53 . . . . 76 . . . . 79 . . . . . . 86 . 34 . . . Volleys Fired 1805 | . 66 11 46 15 . 4 159 60 72 . . 25 48 32 45 . 35 54 47 13 56 88 16 23 57 38 36 . 87 123 166 25 153 205 Largest 4 | . 2 2 2 2 . 2 2 2 2 . . 2 2 2 2 . 2 2 2 2 2 2 2 2 2 2 2 . 2 3 3 1 1 4 Hottest 413 | . 140 100 136 120 . 120 120 103 76 . . 105 165 110 115 . 165 165 146 146 96 146 125 90 125 96 96 . 175 257 150 113 113 413 Shots Fired 2679 | . 123 18 73 25 . 7 265 100 97 . . 34 67 33 48 . 37 76 65 24 72 139 19 30 78 43 46 . 151 282 202 25 156 344 Gun 1100 | . 115 14 45 . . . 64 52 43 . . 2 6 8 10 . . . 4 11 15 41 4 9 33 6 8 . 21 222 87 11 66 203 Cannon 1434 | . . . 20 24 . 6 194 45 54 . . 15 54 17 30 . 31 76 53 13 57 90 9 8 39 37 38 . 130 46 114 14 82 138 Launcher 133 | . . . 8 1 . 1 7 3 . . . 17 7 8 8 . 6 . 8 . . 8 6 13 6 . . . . 14 1 . 8 3 Special 12 | . 8 4 . . . . . . . . . . . . . . . . . . . . . . . . . . . . . . . . Kinetic 873 | . 92 . . . . . 72 52 55 . . 17 6 8 10 . . 24 28 19 39 82 5 9 33 10 17 . 50 134 51 6 22 32 Thermal 1563 | . 31 18 60 24 . 6 185 45 42 . . . 54 17 30 . 29 52 24 5 33 49 8 8 39 33 29 . 101 121 118 11 82 309 Explosive 110 | . . . 8 1 . 1 7 3 . . . 17 7 8 5 . 4 . 2 . . 8 6 13 6 . . . . 2 1 . 8 3 Electromagnetic 133 | . . . 5 . . . 1 . . . . . . . 3 . 4 . 11 . . . . . . . . . . 25 32 8 44 . Robot Hit Streak 39 | . 12 4 8 2 . 2 19 13 9 . . 8 16 12 7 . 5 31 12 10 7 17 7 9 15 13 18 . 31 14 22 9 16 39 Robot Miss Streak 7 | . 5 1 2 1 . 1 4 4 3 . . 3 2 1 1 . 1 3 2 2 5 4 2 1 3 . 1 . 3 5 2 1 4 7 Penetration Max 2 | . . . . . . . 1 1 . . . . . . . . . 1 1 1 1 1 . . . . . . . 2 1 . . . Secondary Targets 11 | . 1 1 . . . . . . . . . . . . . . . . . . . . . . . . . . . 3 . . . 6 Max Gunslinging Chain 1 | . 1 1 . . . . . . . . . . . . . . . . . . . . . . . . . . . 1 . . . 1 Capacitor 364 | . . . . . . . . . . . . . . . . . . . . . . . . . . . . . . . 141 19 123 81 Shots Hit Robots 1529 | . 67 8 49 7 . 1 142 77 13 5 . 16 44 21 10 . 7 44 38 17 43 72 13 18 43 11 13 9 66 183 110 10 136 236 Core Hits 796 | . 20 5 40 4 . 3 59 32 6 . . 26 28 16 13 . 22 13 31 7 21 40 12 4 31 1 4 1 16 96 57 7 75 106 Critical Kills 48 | . . . 1 . . . 1 3 . . . 1 . 1 . . . 4 4 1 4 8 1 . 2 1 1 . 2 6 2 . 2 3 Critical Parts Destroyed 67 | . . . . . . . 1 4 . 2 . 2 3 . . . . 7 5 3 3 6 . . 3 2 1 . 11 6 4 . 3 1 Critical Strikes 162 | . . . 2 . . . 3 7 2 2 . 6 3 2 . . . 11 11 4 9 15 1 1 5 3 2 . 18 15 15 2 11 12 Burn 1 | . . . 1 . . . . . . . . . . . . . . . . . . . . . . . . . . . . . . . Meltdown 9 | . . . 1 . . . 1 1 . . . . . . . . . . . 1 . . . . . . . . 1 . 1 . 1 2 Destroy 113 | . . . . . . . 1 3 1 . . 4 1 1 . . . 11 11 3 9 15 1 1 5 3 2 . 17 13 5 . 4 2 Blast 11 | . . . . . . . 1 . 1 . . 2 . . . . . . . . . . . . . . . . . . . . . 7 Corrupt 12 | . . . . . . . . . . . . . . . . . . . . . . . . . . . . . . . 6 2 4 . Smash 7 | . . . . . . . . 3 . 2 . . 2 . . . . . . . . . . . . . . . . . . . . . Sever 3 | . . . . . . . . . . . . . . . . . . . . . . . . . . . . . . . . . 2 1 Impale 6 | . . . . . . . . . . . . . . 1 . . . . . . . . . . . . . . . 2 3 . . . Melee Attacks 295 | . . . 6 . . . 7 39 48 17 30 8 20 2 . . . . 10 . . . . . . . . 9 3 8 15 3 56 14 Kinetic 6 | . . . . . . . . . . . . . . . . . . . . . . . . . . . . . . . . . 6 . Impact 175 | . . . . . . . . 39 48 17 30 8 20 . . . . . 10 . . . . . . . . . . 1 2 . . . Slashing 87 | . . . 6 . . . 7 . . . . . . . . . . . . . . . . . . . . 6 . 4 . 3 47 14 Piercing 21 | . . . . . . . . . . . . . . 2 . . . . . . . . . . . . . . 3 3 10 . 3 . Sneak Attacks 17 | . . . 1 . . . . 3 . 4 . . 3 2 . . . . . . . . . . . . . 3 . . . . 1 . Combat Hostiles . | . . . . . . . . . . . . . . . . . . . . . . . . . . . . . . . . . . . Follow-up Attacks 3 | . . . . . . . . . . . . . . . . . . . . . . . . . . . . . . 1 . . 2 . Damage Inflicted 61128 | . 757 94 1594 187 . 182 4148 2745 558 399 . 1868 1948 1051 694 . 775 1254 1433 481 993 2521 630 1514 1461 180 235 591 1726 5635 4469 415 7683 12907 Guns 19052 | . 757 94 418 . . . 925 744 354 . . . 124 137 22 . . . 70 287 206 993 78 212 702 55 137 . 453 3883 1764 212 1927 4498 Cannons 20436 | . . . 217 140 . 46 2276 782 204 . . 328 883 199 149 . 136 1254 870 194 787 835 211 . 409 125 98 . 1238 823 2219 119 1372 4522 Explosions 13807 | . . . 755 47 . 136 843 376 . . . 1540 679 570 523 . 639 . 456 . . 693 341 1302 350 . . . . 759 . . 959 2839 Melee 7813 | . . . 204 . . . 101 843 . 399 . . 262 145 . . . . 37 . . . . . . . . 591 35 163 476 84 3425 1048 Ramming 20 | . . . . . . . 3 . . . . . . . . . . . . . . . . . . . . . . 7 10 . . . Kinetic 14693 | . 598 . . . . . 998 744 558 . . 328 124 137 22 . . 393 370 361 380 1300 97 212 702 90 204 . 858 2007 900 81 1094 2135 Thermal 25068 | . 159 94 587 140 . 46 2187 782 . . . . 883 199 149 . 193 861 526 120 613 528 192 . 409 90 31 . 833 2593 2285 38 1372 9158 Explosive 10241 | . . . 755 47 . 136 843 376 . . . 1540 679 570 401 . 481 . 132 . . 481 341 1302 350 . . . . 282 . . 959 566 Electromagnetic 3524 | . . . 48 . . . 16 . . . . . . . 122 . 101 . 368 . . 212 . . . . . . . 583 798 212 1064 . Impact 1541 | . . . . . . . . 843 . 399 . . 262 . . . . . 37 . . . . . . . . . . . . . . . Slashing 5156 | . . . 204 . . . 101 . . . . . . . . . . . . . . . . . . . . 591 . 54 . 84 3074 1048 Piercing 885 | . . . . . . . . . . . . . . 145 . . . . . . . . . . . . . . 35 109 476 . 120 . Highest Corruption 24 | . . 4 . . . . . 3 3 . . . 1 6 6 6 6 1 1 1 10 4 . 9 10 10 10 10 24 6 17 . 11 17 Average Corruption 6 | . . 4 . . . . . 2 2 . . . 1 5 6 6 6 1 1 1 2 3 . 9 9 10 10 10 18 2 10 . 5 12 Corruption Purged 14 | . . . . . . . . . 3 . . . . . . . . . . . 11 . . . . . . . . . . . . . Corruption Blocked 35 | . . . . . . . . . . . . 15 . . . . . . . . . . . . . . . . . . . . 20 . Effects 562 | . . 2 . . . . . 17 44 . . . 2 26 34 4 36 5 12 . 3 3 . 5 40 17 29 8 47 11 91 . 56 70 Message Errors 134 | . . 1 . . . . . 5 11 . . . 2 4 10 1 5 1 7 . . 1 . 2 8 6 9 1 8 3 18 . 17 14 Matter Fused 125 | . . . . . . . . 2 14 . . . . 6 2 1 7 . 3 . . 1 . 1 11 1 5 3 9 4 23 . 17 15 Heat Flow Errors 73 | . . 1 . . . . . 3 6 . . . . 5 7 . 7 1 1 . 1 . . 1 2 1 6 . 4 . 13 . 4 10 Energy Discharges 64 | . . . . . . . . 2 4 . . . . 1 4 2 6 2 . . . . . . 8 2 4 2 5 2 12 . 2 6 Parts Rejected 9 | . . . . . . . . . . . . . . 1 . . 1 . . . . . . . 1 1 . . 1 . 3 . . 1 Parts Fused 7 | . . . . . . . . . 1 . . . . . 1 . . . . . . 1 . . 1 . . . 1 . 2 . . . Data Loss (minor) 62 | . . . . . . . . 4 4 . . . . 4 5 . 6 1 . . . . . . 4 2 1 2 10 . 6 . 6 7 Data Loss (major) 24 | . . . . . . . . 1 . . . . . 4 2 . 1 . . . . . . 1 1 1 1 . 1 1 3 . 3 4 Misfires 25 | . . . . . . . . . 3 . . . . . 1 . . . . . 2 . . . . 2 2 . 2 . 7 . 4 2 Alerts 13 | . . . . . . . . . 1 . . . . . 2 . 2 . 1 . . . . . 1 . 1 . . . 2 . 2 1 Misdirections 2 | . . . . . . . . . . . . . . . . . . . . . . . . . . . . . . . . . . 2 Weapon Failures 24 | . . . . . . . . . . . . . . 1 . . 1 . . . . . . . 3 1 . . 6 1 2 . 1 8 Overload Shots . | . . . . . . . . . . . . . . . . . . . . . . . . . . . . . . . . . . . Overflow Damage 3031 | . . . 78 . . . 57 394 . 311 . 47 217 145 21 . . 50 18 . 20 26 32 . . 49 . 412 . 8 60 . 301 785 Projectiles 1104 | . . . . . . . 44 50 . . . . 59 76 . . . 50 3 . 20 26 24 . . 49 . . . 2 60 . 55 586 Explosions 415 | . . . 8 . . . 13 18 . . . 47 . . 21 . . . . . . . 8 . . . . . . 6 . . 145 149 Melee 1512 | . . . 70 . . . . 326 . 311 . . 158 69 . . . . 15 . . . . . . . . 412 . . . . 101 50 Knockbacks 35 | . . . . . . . . 3 . . . . 3 . . . . 8 . . 2 4 . . . . . . . . . . . 15 Impact 6 | . . . . . . . . 3 . . . . 3 . . . . . . . . . . . . . . . . . . . . . Kinetic 26 | . . . . . . . . . . . . . . . . . . 7 . . 2 4 . . . . . . . . . . . 13 Secondary 3 | . . . . . . . . . . . . . . . . . . 1 . . . . . . . . . . . . . . . 2 Self-Inflicted Damage 719 | . . . 68 . . 28 35 36 . . . 41 . 55 . . . . . . . 85 . 151 . . . . . 25 5 . 151 39 Shots 20 | . . . 2 . . 1 1 1 . . . 1 . 1 . . . . . . . 1 . 5 . . . . . 2 . . 3 2 Rammed 3 | . . . . . . . 1 . . . . . . . . . . . . . . . . . . . . . . 1 1 . . . Targets Rammed 3 | . . . . . . . 1 . . . . . . . . . . . . . . . . . . . . . . 1 1 . . . Kicked . | . . . . . . . . . . . . . . . . . . . . . . . . . . . . . . . . . . . Crushed . | . . . . . . . . . . . . . . . . . . . . . . . . . . . . . . . . . . . Highest Temperature 479 | . 242 276 327 238 . 138 297 336 224 . . 221 249 300 479 . 288 194 202 78 242 368 6 288 258 230 327 . 304 363 235 75 440 255 Average Temperature 88 | . 55 71 93 101 . 58 78 74 79 . . 107 92 117 133 . 101 47 47 29 86 71 3 128 85 101 107 . 104 89 61 36 91 77 Received Heat Transfer 5629 | . 294 . 168 40 . . 855 339 24 . . 279 90 263 . . . . 82 . 27 508 . . 27 . 9 . 99 646 289 24 284 1282 Effects 23 | . . . 2 1 . . . . 3 . . . . 3 4 . 2 . . . . 2 . . . 2 1 . 1 1 . . 1 . Shutdowns 2 | . . . . . . . . . . . . . . . 1 . . . . . . 1 . . . . . . . . . . . . Energy Bleed 10 | . . . . 1 . . . . . . . . . 1 1 . 2 . . . . 1 . . . . 1 . 1 1 . . 1 . Interference 9 | . . . 2 . . . . . 3 . . . . 2 . . . . . . . . . . . 2 . . . . . . . . Matter Decay 2 | . . . . . . . . . . . . . . . 2 . . . . . . . . . . . . . . . . . . . Siege Activations 29 | . . . . . . . . . . . . . . . . . . . . . . 2 . . . . . . 2 1 7 2 9 6 Total Turns 564 | . . . . . . . . . . . . . . . . . . . . . . 13 . . . . . . 62 26 57 7 201 198 Longest Duration 78 | . . . . . . . . . . . . . . . . . . . . . . 12 . . . . . . 45 26 16 4 78 56 Robots Corrupted 15 | . . . . . . . . . . . . . . . . . . . . . . . . . . . . . . 1 6 1 7 . Combat Hostiles 15 | . . . . . . . . . . . . . . . . . . . . . . . . . . . . . . 1 6 1 7 . Parts Fried 42 | . . . . . . . . 6 . 3 . . 6 . 1 . . . . . . . . . . . . . . 1 10 . 15 . Impact Corruptions 33 | . . . . . . . . 8 . 18 . . 5 . . . . . 1 . . . . . . . . . . . . . . 1 Robots Melted 15 | . . . 2 . . . 1 1 . . . . . . . . . . . 1 . . . . . . . . 2 1 1 . 1 5 Combat Hostiles 12 | . . . 1 . . . . 1 . . . . . . . . . . . 1 . . . . . . . . 2 1 1 . . 5 Parts Melted 63 | . . . 6 1 . . 4 . . . . . 4 . 1 . . 5 . 1 3 . . . 1 . . . 3 10 4 . 6 14 Heat Transferred 29825 | . 410 248 1435 222 . 74 3515 1147 . . . . 1509 298 185 . 287 1014 605 148 740 707 300 . 496 111 50 . 979 2916 1517 37 1073 9802 Parts Sabotaged 3 | . . . . . . . . . . . . . . . . . . . . . . . . . . . . . . . . . . 3 Parts Stolen . | . . . . . . . . . . . . . . . . . . . . . . . . . . . . . . . . . . . Parts Stripped . | . . . . . . . . . . . . . . . . . . . . . . . . . . . . . . . . . . . Power Chain Reactions 5 | . . . . . . . . . . . . . . . 1 . 1 . 2 . . . . . . . . . . 1 . . . . Missiles Intercepted . | . . . . . . . . . . . . . . . . . . . . . . . . . . . . . . . . . . . Alert | -11 -10 -10 -9 -9 -9 -8 -8 -7 -7 -7 -7 -6 -6 -6 -6 -6 -5 -5 -5 -5 -5 -5 -4 -4 -4 -4 -4 -4 -3 -3 -3 -2 -2 -2 ------- Run | Jun Mat Min Mat Min Exi Min Mat Fac Low Low Zio Pro Fac Low Low Dat Pro Fac Ext Cet Arc Hub Fac Was Fac Upp Upp Zhi Pro Res Qua Res Tes Sec Peak Influence 1806 | . 199 108 578 163 . 101 453 585 . . . . 238 . . . . 185 604 613 412 1270 722 381 603 . . . . 316 513 230 1018 1806 Initial 622 | . . 34 39 117 . . 39 164 . . . . 12 . . . . 134 . 253 158 42 622 252 252 . . . . 150 113 112 129 546 Average 290 | . 63 83 384 78 . 95 223 297 . . . . 49 . . . . 72 138 409 278 604 654 298 314 . . . . 143 189 151 496 910 Maximum Alert Level 5 | . . . 2 . . . 2 2 . . . . 1 . . . . . 2 2 2 4 3 1 2 . . . . 1 2 1 3 5 Low Security (%) 47 | 100 100 100 11 100 . 100 42 36 . . . . 93 . . . . 100 72 . 17 14 . . 21 . . . . 70 57 80 12 . Level 1 27 | . . . 33 . . . 48 42 . . . . 6 . . . . . 14 64 55 12 . 100 64 . . . . 29 37 19 30 . Level 2 17 | . . . 55 . . . 9 21 . . . . . . . . . . 12 35 27 41 63 . 14 . . . . . 4 . 29 48 Level 3 5 | . . . . . . . . . . . . . . . . . . . . . . 23 36 . . . . . . . . . 27 22 Level 4 1 | . . . . . . . . . . . . . . . . . . . . . . 8 . . . . . . . . . . . 21 Level 5 . | . . . . . . . . . . . . . . . . . . . . . . . . . . . . . . . . . . 2 High Security . | . . . . . . . . . . . . . . . . . . . . . . . . . . . . . . . . . . 5 Max Security . | . . . . . . . . . . . . . . . . . . . . . . . . . . . . . . . . . . . Squads Dispatched 74 | . 2 . 2 . . . 6 6 . . . . 3 . . . . 2 1 . . 8 1 . 1 . . . . 9 7 1 9 16 Investigation 9 | . . . . . . . 1 2 . . . . . . . . . . . . . 1 . . . . . . . 4 . . . 1 Extermination 28 | . . . . . . . . 2 . . . . 2 . . . . 2 . . . 1 1 . 1 . . . . 2 7 1 6 3 Reinforcement 22 | . 2 . 2 . . . 5 2 . . . . 1 . . . . . 1 . . 3 . . . . . . . 1 . . 2 3 Assault 10 | . . . . . . . . . . . . . . . . . . . . . . 3 . . . . . . . . . . 1 6 Garrison 5 | . . . . . . . . . . . . . . . . . . . . . . . . . . . . . . 2 . . . 3 Intercept . | . . . . . . . . . . . . . . . . . . . . . . . . . . . . . . . . . . . Searches Triggered . | . . . . . . . . . . . . . . . . . . . . . . . . . . . . . . . . . . . Data Miner Redirects 7 | . . . . . . . . . . . . . . . . . . . . . . . . . . . . . . 2 . . 1 4 Construction Impeded 5 | . . . 1 . . . 2 . . . . . . . . . . . . . . . . . . . . . . 1 . . . 1 Haulers Reinforced 2 | . . . . . . . . 1 . . . . . . . . . . . . . . . . . . . . . . . . . 1 Active Scanning Responses 1 | . . . . . . . . 1 . . . . . . . . . . . . . . . . . . . . . . . . . . Cargo Convoy Interrupts . | . . . . . . . . . . . . . . . . . . . . . . . . . . . . . . . . . . . Stealth | -11 -10 -10 -9 -9 -9 -8 -8 -7 -7 -7 -7 -6 -6 -6 -6 -6 -5 -5 -5 -5 -5 -5 -4 -4 -4 -4 -4 -4 -3 -3 -3 -2 -2 -2 --------- Run | Jun Mat Min Mat Min Exi Min Mat Fac Low Low Zio Pro Fac Low Low Dat Pro Fac Ext Cet Arc Hub Fac Was Fac Upp Upp Zhi Pro Res Qua Res Tes Sec Distress Signals 28 | . . . 2 2 . . 4 . . . . . . . . . . . 2 2 . 3 . . . . . . . 3 1 . 1 8 Communications Jammed 31 | . . . . . . . . 6 . . . . 4 . . . . 1 7 . 1 1 . . 5 . . . 1 5 . . . . Distress Signals 21 | . . . . . . . . 6 . . . . 2 . . . . 1 7 . 1 . . . 3 . . . . 1 . . . . Times Spotted 578 | . 19 6 27 5 . 3 54 22 2 . . 14 18 7 9 . 16 10 24 12 18 30 2 4 11 1 2 . 9 59 48 5 50 91 Peak Tracking Total 12 | . 3 5 12 2 . 3 7 5 1 . . 4 5 4 4 . 5 2 4 5 1 5 2 3 3 1 1 . 2 6 5 3 5 11 Tactical Retreats 32 | . 2 1 2 . . . 6 1 1 . . . . . 1 . . . 2 . . 2 . . . . 1 . . 3 1 1 3 5 Traps | -11 -10 -10 -9 -9 -9 -8 -8 -7 -7 -7 -7 -6 -6 -6 -6 -6 -5 -5 -5 -5 -5 -5 -4 -4 -4 -4 -4 -4 -3 -3 -3 -2 -2 -2 ------- Run | Jun Mat Min Mat Min Exi Min Mat Fac Low Low Zio Pro Fac Low Low Dat Pro Fac Ext Cet Arc Hub Fac Was Fac Upp Upp Zhi Pro Res Qua Res Tes Sec Traps Triggered 15 | . 1 . . . . . 1 3 . . . . . . . . . . 5 . . 1 1 . 1 . . . . 1 1 . . . Indirectly . | . . . . . . . . . . . . . . . . . . . . . . . . . . . . . . . . . . . Trap Hack Attempts 1 | . . . . . . . . . . . . . . . . . . . . . . . . . 1 . . . . . . . . . Triggered . | . . . . . . . . . . . . . . . . . . . . . . . . . . . . . . . . . . . Disarmed . | . . . . . . . . . . . . . . . . . . . . . . . . . . . . . . . . . . . Reprogrammed 1 | . . . . . . . . . . . . . . . . . . . . . . . . . 1 . . . . . . . . . Reused . | . . . . . . . . . . . . . . . . . . . . . . . . . . . . . . . . . . . Traps Extracted . | . . . . . . . . . . . . . . . . . . . . . . . . . . . . . . . . . . . Installed . | . . . . . . . . . . . . . . . . . . . . . . . . . . . . . . . . . . . Triggered 6 | . . . . . . . . . . . . . . 2 . . . . . . . . . . . . . . 4 . . . . . Fabricated Traps 1 | . . . . . . . . . . . 1 . . . . . . . . . . . . . . . . . . . . . . . Machines | -11 -10 -10 -9 -9 -9 -8 -8 -7 -7 -7 -7 -6 -6 -6 -6 -6 -5 -5 -5 -5 -5 -5 -4 -4 -4 -4 -4 -4 -3 -3 -3 -2 -2 -2 ---------- Run | Jun Mat Min Mat Min Exi Min Mat Fac Low Low Zio Pro Fac Low Low Dat Pro Fac Ext Cet Arc Hub Fac Was Fac Upp Upp Zhi Pro Res Qua Res Tes Sec Machines Disabled 60 | . . . . 2 . 1 4 2 . . 1 . 1 . . . . 1 1 . 4 8 . . 5 . . . . 1 9 . 13 7 Max in Single Turn 2 | . . . . . . 1 1 1 . . 1 . 1 . . . . . 1 . 1 2 . . 1 . . . . 1 1 . 1 2 Garrison Access 10 | . . . . . . . 1 1 . . . . 2 . . . . 1 . . . 1 . . 1 . . . . 1 . . 1 1 Network Hub 2 | . . . . . . . . . . . . . . . . . . . . . . 2 . . . . . . . . . . . . Machines Repaired . | . . . . . . . . . . . . . . . . . . . . . . . . . . . . . . . . . . . Machines Sabotaged . | . . . . . . . . . . . . . . . . . . . . . . . . . . . . . . . . . . . Overloaded Fab Kills . | . . . . . . . . . . . . . . . . . . . . . . . . . . . . . . . . . . . Hacking | -11 -10 -10 -9 -9 -9 -8 -8 -7 -7 -7 -7 -6 -6 -6 -6 -6 -5 -5 -5 -5 -5 -5 -4 -4 -4 -4 -4 -4 -3 -3 -3 -2 -2 -2 --------- Run | Jun Mat Min Mat Min Exi Min Mat Fac Low Low Zio Pro Fac Low Low Dat Pro Fac Ext Cet Arc Hub Fac Was Fac Upp Upp Zhi Pro Res Qua Res Tes Sec Machines Accessed 104 | . 4 1 3 . . 1 10 5 1 . 1 . 5 . . 4 . 3 5 1 1 10 2 . 6 . . 4 . 7 14 1 12 3 Terminals 63 | . 4 1 3 . . 1 7 2 . . . . 2 . . . . 1 5 1 . 9 . . 2 . . . . 3 10 . 10 2 Fabricators 6 | . . . . . . . . 1 . . . . . . . . . . . . . . 1 . 2 . . . . 2 . . . . Repair Stations 6 | . . . . . . . 1 . . . . . 1 . . . . . . . . . . . 1 . . . . 1 2 . . . Recycling Units 4 | . . . . . . . 1 1 . . . . . . . . . . . . . . 1 . . . . . . . . 1 . . Scanalyzers 4 | . . . . . . . . . . . . . . . . . . 1 . . . . . . . . . . . . 2 . 1 . Garrison Access 10 | . . . . . . . 1 1 . . . . 2 . . . . 1 . . . 1 . . 1 . . . . 1 . . 1 1 Total Hacks 342 | . 10 1 12 . . 4 27 10 1 . 1 . 14 . . 24 . 6 8 3 25 26 4 . 25 . . 15 . 29 49 3 38 7 Successful 192 | . 5 1 4 . . 3 10 4 1 . 1 . 5 . . 24 . 4 2 . 25 18 2 . 12 . . 15 . 13 24 3 15 1 Failed 150 | . 5 . 8 . . 1 17 6 . . . . 9 . . . . 2 6 3 . 8 2 . 13 . . . . 16 25 . 23 6 Catastrophic 32 | . 2 . 2 . . . 2 2 . . . . . . . . . 1 2 2 . 2 . . 2 . . . . 3 3 . 5 4 Database Lockouts . | . . . . . . . . . . . . . . . . . . . . . . . . . . . . . . . . . . . Manual 127 | . 6 . 12 . . 3 11 5 . . . . 6 . . . . 2 3 1 . 21 . . 3 . . . . 1 25 2 25 1 Terminals 197 | . 10 1 12 . . 4 18 6 . . . . 7 . . . . 2 8 3 . 25 . . 11 . . . . 16 36 . 35 3 Fabricators 15 | . . . . . . . . 1 . . . . . . . . . . . . . . 3 . 6 . . . . 5 . . . . Repair Stations 25 | . . . . . . . 2 . . . . . 3 . . . . . . . . . . . 4 . . . . 7 9 . . . Recycling Units 11 | . . . . . . . 6 1 . . . . . . . . . . . . . . 1 . . . . . . . . 3 . . Scanalyzers 8 | . . . . . . . . . . . . . . . . . . 3 . . . . . . . . . . . . 4 . 1 . Garrison Access 20 | . . . . . . . 1 2 . . . . 4 . . . . 1 . . . 1 . . 4 . . . . 1 . . 2 4 Terminal Hacks 118 | . 2 1 1 . . 2 4 1 1 . 1 . . . . 24 . 1 1 . 25 12 . . 4 . . 15 . 5 10 . 8 . Record 41 | . . . . . . . . . . . . . . . . 11 . . . . 25 . . . . . . 5 . . . . . . Part Schematic 6 | . . . . . . . . . . . 1 . . . . 3 . . . . . . . . . . . 2 . . . . . . Robot Schematic 7 | . . . . . . . . . . . . . . . . 7 . . . . . . . . . . . . . . . . . . Robot Analysis 5 | . . . . . . . 1 . . . . . . . . . . . . . . . . . . . . 4 . . . . . . Prototype ID Bank 7 | . . . . . . . . . . . . . . . . 3 . . . . . . . . . . . 4 . . . . . . Open Door 3 | . . . . . . . . . 1 . . . . . . . . . . . . . . . . . . . . . 1 . 1 . Level Access Points 1 | . . . . . . . . . . . . . . . . . . . . . . . . . . . . . . . 1 . . . Branch Access Points 5 | . 1 . . . . . 1 1 . . . . . . . . . . . . . . . . . . . . . 1 . . 1 . Machine Index 2 | . . . . . . . . . . . . . . . . . . . . . . 1 . . . . . . . . . . 1 . Terminal Index 3 | . . . . . . . . . . . . . . . . . . . . . . 1 . . . . . . . . 1 . 1 . Alert Level 3 | . . . . . . . . . . . . . . . . . . . . . . 1 . . 1 . . . . . 1 . . . Unreport Threat 14 | . . . 1 . . . 2 . . . . . . . . . . 1 1 . . 2 . . 2 . . . . 2 3 . . . Locate Traps 6 | . 1 . . . . . . . . . . . . . . . . . . . . . . . 1 . . . . 1 1 . 2 . Dispatch Records 1 | . . . . . . 1 . . . . . . . . . . . . . . . . . . . . . . . . . . . . Patrol Status 1 | . . . . . . . . . . . . . . . . . . . . . . 1 . . . . . . . . . . . . Recall Investigation 1 | . . . . . . . . . . . . . . . . . . . . . . 1 . . . . . . . . . . . . Recall Extermination 1 | . . . . . . . . . . . . . . . . . . . . . . 1 . . . . . . . . . . . . Hauler Manifests 2 | . . . . . . . . . . . . . . . . . . . . . . 1 . . . . . . . . 1 . . . Zone Layout 9 | . . 1 . . . 1 . . . . . . . . . . . . . . . 3 . . . . . . . 1 1 . 2 . Fabricator Hacks 7 | . . . . . . . . . . . . . . . . . . . . . . . 1 . 2 . . . . 4 . . . . Load Schematic 3 | . . . . . . . . . . . . . . . . . . . . . . . . . 1 . . . . 2 . . . . Build 4 | . . . . . . . . . . . . . . . . . . . . . . . 1 . 1 . . . . 2 . . . . Repair Station Hacks 12 | . . . . . . . 2 . . . . . 2 . . . . . . . . . . . 2 . . . . 2 4 . . . Scan Component 7 | . . . . . . . 1 . . . . . 1 . . . . . . . . . . . 1 . . . . 2 2 . . . Repair 5 | . . . . . . . 1 . . . . . 1 . . . . . . . . . . . 1 . . . . . 2 . . . Recycling Unit Hacks 3 | . . . . . . . 1 . . . . . . . . . . . . . . . 1 . . . . . . . . 1 . . Retrieve Components 3 | . . . . . . . 1 . . . . . . . . . . . . . . . 1 . . . . . . . . 1 . . Scanalyzer 5 | . . . . . . . . . . . . . . . . . . 2 . . . . . . . . . . . . 3 . . . Insert Component 4 | . . . . . . . . . . . . . . . . . . 1 . . . . . . . . . . . . 3 . . . Analyze 1 | . . . . . . . . . . . . . . . . . . 1 . . . . . . . . . . . . . . . . Garrison Access Hacks 8 | . . . . . . . 1 . . . . . 2 . . . . 1 . . . 1 . . 1 . . . . 1 . . 1 . Seal Access 8 | . . . . . . . 1 . . . . . 2 . . . . 1 . . . 1 . . 1 . . . . 1 . . 1 . Unauthorized Hacks 39 | . 3 . 3 . . 1 2 3 . . . . 1 . . . . . 1 . . 5 . . 3 . . . . 1 7 2 6 1 Terminals 34 | . 3 . 3 . . 1 2 2 . . . . 1 . . . . . 1 . . 5 . . 3 . . . . 1 7 . 5 . Track 9 | . 1 . 1 . . 1 . . . . . . 1 . . . . . . . . 1 . . 1 . . . . . 1 . 2 . Assimilate 5 | . 1 . . . . . . . . . . . . . . . . . . . . 1 . . . . . . . . 3 . . . Botnet 17 | . 1 . 2 . . . 1 1 . . . . . . . . . . 1 . . 3 . . 2 . . . . 1 2 . 3 . Operators 3 | . . . . . . . 1 1 . . . . . . . . . . . . . . . . . . . . . . 1 . . . Fabricators . | . . . . . . . . . . . . . . . . . . . . . . . . . . . . . . . . . . . Repair Stations . | . . . . . . . . . . . . . . . . . . . . . . . . . . . . . . . . . . . Recycling Units 2 | . . . . . . . . . . . . . . . . . . . . . . . . . . . . . . . . 2 . . Reject 1 | . . . . . . . . . . . . . . . . . . . . . . . . . . . . . . . . 1 . . Recyclers 1 | . . . . . . . . . . . . . . . . . . . . . . . . . . . . . . . . 1 . . Scanalyzers 1 | . . . . . . . . . . . . . . . . . . . . . . . . . . . . . . . . . 1 . Researchers 1 | . . . . . . . . . . . . . . . . . . . . . . . . . . . . . . . . . 1 . Garrison Access 2 | . . . . . . . . 1 . . . . . . . . . . . . . . . . . . . . . . . . . 1 Jam 2 | . . . . . . . . 1 . . . . . . . . . . . . . . . . . . . . . . . . . 1 Data Cores Recovered 1 | . . . . . . . . . . . . . . . . . . . . . . 1 . . . . . . . . . . . . Used . | . . . . . . . . . . . . . . . . . . . . . . . . . . . . . . . . . . . Hacking Detections 71 | . 3 . 3 . . . 9 5 . . . . 3 . . . . 2 5 1 . 8 . . 4 . . . . 6 10 . 9 3 Full Trace Events 5 | . . . . . . . 1 . . . . . . . . . . . . . . 1 . . . . . . . 3 . . . . Feedback Events . | . . . . . . . . . . . . . . . . . . . . . . . . . . . . . . . . . . . Feedback Blocked . | . . . . . . . . . . . . . . . . . . . . . . . . . . . . . . . . . . . Robot Schematics Acquired 11 | . . . . . . . . . . . 4 . . . . 7 . . . . . . . . . . . . . . . . . . Robots Built . | . . . . . . . . . . . . . . . . . . . . . . . . . . . . . . . . . . . Authchips . | . . . . . . . . . . . . . . . . . . . . . . . . . . . . . . . . . . . Time 84 | . . . . . . . . . . . . . . . . . . . . . . . 84 . . . . . . . . . . . Total Robot Build Rating . | . . . . . . . . . . . . . . . . . . . . . . . . . . . . . . . . . . . Part Schematics Acquired 26 | . . . . . . . . . . . 15 . . . . 3 . 1 . . . . . . . . . 2 . . . . 5 . Parts Built 6 | . . . . . . . . . . . . . . . . . . . . . . . . . 2 . . . . 4 . . . . Authchips . | . . . . . . . . . . . . . . . . . . . . . . . . . . . . . . . . . . . Time 109 | . . . . . . . . . . . . . . . . . . . . . . . . . 39 . . . . 70 . . . . Total Part Build Rating 30 | . . . . . . . . . . . . . . . . . . . . . . . . . 14 . . . . 16 . . . . Parts Repaired 5 | . . . . . . . 1 . . . . . 1 . . . . . . . . . . . 1 . . . . . 2 . . . Time 154 | . . . . . . . 51 . . . . . 22 . . . . . . . . . . . 14 . . . . . 67 . . . Parts Recycled . | . . . . . . . . . . . . . . . . . . . . . . . . . . . . . . . . . . . Recycled Matter . | . . . . . . . . . . . . . . . . . . . . . . . . . . . . . . . . . . . Retrieved Matter . | . . . . . . . . . . . . . . . . . . . . . . . . . . . . . . . . . . . Retrieved Components 2 | . . . . . . . 1 . . . . . . . . . . . . . . . 1 . . . . . . . . . . . Parts Scanalyzed 1 | . . . . . . . . . . . . . . . . . . 1 . . . . . . . . . . . . . . . . Part Schematics Acquired 1 | . . . . . . . . . . . . . . . . . . 1 . . . . . . . . . . . . . . . . Parts Damaged . | . . . . . . . . . . . . . . . . . . . . . . . . . . . . . . . . . . . Bothacking | -11 -10 -10 -9 -9 -9 -8 -8 -7 -7 -7 -7 -6 -6 -6 -6 -6 -5 -5 -5 -5 -5 -5 -4 -4 -4 -4 -4 -4 -3 -3 -3 -2 -2 -2 ------------ Run | Jun Mat Min Mat Min Exi Min Mat Fac Low Low Zio Pro Fac Low Low Dat Pro Fac Ext Cet Arc Hub Fac Was Fac Upp Upp Zhi Pro Res Qua Res Tes Sec Used RIF Installer . | . . . . . . . . . . . . . . . . . . . . . . . . . . . . . . . . . . . Robots Hacked 4 | . . . . . . . . . . . . . . . . . . . . . . . . . . . . 3 . . 1 . . . Non-combat . | . . . . . . . . . . . . . . . . . . . . . . . . . . . . . . . . . . . Combat 4 | . . . . . . . . . . . . . . . . . . . . . . . . . . . . 3 . . 1 . . . Robot Hacks Applied 4 | . . . . . . . . . . . . . . . . . . . . . . . . . . . . 3 . . 1 . . . parse_system 4 | . . . . . . . . . . . . . . . . . . . . . . . . . . . . 3 . . 1 . . . Relay Couplers Released 6 | . . . . . . . . . . . . . . . . . . . . . . 3 . . . . . . . . . . . 3 Machine Destruction 3 | . . . . . . . . . . . . . . . . . . . . . . . . . . . . . . . . . . 3 Programmers 3 | . . . . . . . . . . . . . . . . . . . . . . 3 . . . . . . . . . . . . Fabnet Peak Effective % . | . . . . . . . . . . . . . . . . . . . . . . . . . . . . . . . . . . . Robots Rewired 4 | . . . . . . . . . . . . . . . . . . . 4 . . . . . . . . . . . . . . . Allies Hacked . | . . . . . . . . . . . . . . . . . . . . . . . . . . . . . . . . . . . Hacks Repelled . | . . . . . . . . . . . . . . . . . . . . . . . . . . . . . . . . . . . Allies | -11 -10 -10 -9 -9 -9 -8 -8 -7 -7 -7 -7 -6 -6 -6 -6 -6 -5 -5 -5 -5 -5 -5 -4 -4 -4 -4 -4 -4 -3 -3 -3 -2 -2 -2 -------- Run | Jun Mat Min Mat Min Exi Min Mat Fac Low Low Zio Pro Fac Low Low Dat Pro Fac Ext Cet Arc Hub Fac Was Fac Upp Upp Zhi Pro Res Qua Res Tes Sec Total Allies 31 | . 1 . . 2 . . . . . . . . . . . . 1 . 19 5 . 2 . . . . . . . . 1 . . . Largest Group 12 | . 1 . . 2 . . . . . . . . . . . . 1 1 10 12 6 6 . . . . . . . . 1 . . . Highest-Rated Group 833 | . 10 . . 37 . . . . . . . . . . . . 96 96 442 833 639 480 . . . . . . . . 26 . . . Highest-Rated Ally 159 | . 10 . . 31 . . . . . . . . . . . . 96 96 159 159 159 96 . . . . . . . . 26 . . . Total Orders 94 | . 2 . . . . . . . . . . . . . . . . . 10 31 4 37 2 . . . . . . . 1 . 7 . STAY 42 | . 1 . . . . . . . . . . . . . . . . . 3 20 2 13 . . . . . . . . 1 . 2 . ROAM 4 | . . . . . . . . . . . . . . . . . . . . 1 . 2 . . . . . . . . . . 1 . FOLLOW 23 | . 1 . . . . . . . . . . . . . . . . . . 6 2 14 . . . . . . . . . . . . EXPLORE 17 | . . . . . . . . . . . . . . . . . . . 6 3 . 5 1 . . . . . . . . . 2 . RETURN 8 | . . . . . . . . . . . . . . . . . . . 1 1 . 3 1 . . . . . . . . . 2 . Ally Attacks 353 | . . . . 26 . . . . . . . . . . . . 16 3 111 66 . 131 . . . . . . . . . . . . Total Damage 8777 | . . . . 337 . . . . . . . . . . . . 381 86 2361 1331 . 4281 . . . . . . . . . . . . Kills 70 | . . . . 4 . . . . . . . . . . . . 4 1 23 13 . 25 . . . . . . . . . . . . Allies Corrupted 2 | . . . . . . . . . . . . . . . . . . 1 . . . 1 . . . . . . . . . . . . Allies Melted 1 | . . . . . . . . . . . . . . . . . . . 1 . . . . . . . . . . . . . . . Intel | -11 -10 -10 -9 -9 -9 -8 -8 -7 -7 -7 -7 -6 -6 -6 -6 -6 -5 -5 -5 -5 -5 -5 -4 -4 -4 -4 -4 -4 -3 -3 -3 -2 -2 -2 ------- Run | Jun Mat Min Mat Min Exi Min Mat Fac Low Low Zio Pro Fac Low Low Dat Pro Fac Ext Cet Arc Hub Fac Was Fac Upp Upp Zhi Pro Res Qua Res Tes Sec Robot Analysis Total 5 | . . . . . . . 1 . . . . . . . . . . . . . . . . . . . . 4 . . . . . . Derelict Logs Recovered 11 | . . 1 . 1 . . . . 2 2 2 1 . . . . . . . . . . . . . . 2 . . . . . . . Drone Launches 21 | . . . . . . . . . . . . . . . . . . . 6 4 . 8 1 . . . . . . . . . 2 . Drone Recoveries 14 | . . . . . . . . . . . . . . . . . . . 4 2 . 7 . . . . . . . . . . 1 . Exploration | -11 -10 -10 -9 -9 -9 -8 -8 -7 -7 -7 -7 -6 -6 -6 -6 -6 -5 -5 -5 -5 -5 -5 -4 -4 -4 -4 -4 -4 -3 -3 -3 -2 -2 -2 ------------- Run | Jun Mat Min Mat Min Exi Min Mat Fac Low Low Zio Pro Fac Low Low Dat Pro Fac Ext Cet Arc Hub Fac Was Fac Upp Upp Zhi Pro Res Qua Res Tes Sec Turns Passed 37742 | 72 1021 174 934 684 348 104 2428 2369 2263 594 1921 1162 1861 643 1091 182 1367 1242 1549 508 933 1505 284 212 933 506 760 295 925 1904 2625 365 2572 1406 Spaces Moved 18654 | 39 672 107 482 382 233 60 1209 1118 1346 417 1336 687 927 292 493 100 625 649 854 235 313 662 157 90 497 322 462 188 453 654 1212 144 883 354 Core 1 | 1 . . . . . . . . . . . . . . . . . . . . . . . . . . . . . . . . . . Treads 1605 | 36 63 1 . . . . 1 44 . . . . . . . . . . . . 279 52 . . . . . . . 429 109 . 271 320 Legs 33 | . . . . . . . . . . . . . . . . . . . . . . . . . . . . . . . . . . 33 Wheels 17015 | 2 609 106 482 382 233 60 1208 1074 1346 417 1336 687 927 292 493 100 625 649 854 235 34 610 157 90 497 322 462 188 453 225 1103 144 612 1 Hover . | . . . . . . . . . . . . . . . . . . . . . . . . . . . . . . . . . . . Flight . | . . . . . . . . . . . . . . . . . . . . . . . . . . . . . . . . . . . Fastest Speed 50 | 50 95 100 105 150 150 150 105 126 130 130 130 130 140 155 170 170 185 125 125 146 180 160 138 123 130 130 130 130 130 125 125 190 160 160 Average Speed 150 | 153 112 107 135 150 150 150 129 148 130 130 130 147 157 180 180 170 185 152 142 152 235 172 142 130 130 130 130 130 131 181 151 190 202 192 Slowest Speed 323 | 160 240 160 150 150 150 150 240 246 130 130 130 160 205 305 185 170 185 290 155 180 323 243 180 138 130 130 130 130 160 243 237 205 305 290 Overloaded Moves . | . . . . . . . . . . . . . . . . . . . . . . . . . . . . . . . . . . . Propulsion Burnouts . | . . . . . . . . . . . . . . . . . . . . . . . . . . . . . . . . . . . Robots Hopped . | . . . . . . . . . . . . . . . . . . . . . . . . . . . . . . . . . . . Cave-ins Triggered 1 | . . . . . . . . . . . . . . . . . . . . . . . . . . . . . 1 . . . . . Teleports 3 | . . . . . . . . . . . . . . . . . . . . . . . . . . . . . . 1 1 . . 1 Exploration Rate (%) 52 | 3 84 38 50 56 65 17 83 35 89 55 87 57 24 46 56 70 56 14 81 71 89 72 6 77 15 46 58 62 65 18 95 5 74 18 Regions Visited 34 Branch Regions 23 Pre-discovered Areas 6 | . . . . 1 . . . . 1 . . . . . . 1 . . . . . . . . . . . 3 . . . . . . Known Exits Taken 26 | . 1 . 1 . . . . 1 1 1 1 1 1 1 1 1 1 1 1 1 1 1 . . 1 1 1 1 1 1 1 1 1 . Unknown Exits Taken 6 | 1 . 1 . 1 1 1 1 . . . . . . . . . . . . . . . . . . . . . . . . . . . Scrap Searched 21 | . . . . 1 . . . . 8 1 3 2 . 1 1 . 4 . . . . . . . . . . . . . . . . . Spaces Dug 515 | . 6 3 5 1 . 10 23 18 51 12 5 31 20 3 10 . 25 19 11 . . 36 . 3 22 10 16 . 18 15 64 6 51 21 Terrain Destroyed 1813 | . 8 4 48 12 . 11 86 41 81 12 5 137 61 51 57 . 75 24 30 3 13 227 23 97 75 33 31 . 80 46 90 11 169 172 Melee 121 | . . . . . . . 3 18 46 12 5 8 15 . . . . . 6 . . . . . . . . . . 4 2 . 2 . Projectile 624 | . 8 4 1 4 . 2 34 6 34 . . 4 13 11 24 . 25 24 8 3 13 30 3 8 37 33 31 . 80 24 56 11 38 55 AOE 1064 | . . . 47 8 . 9 49 17 . . . 125 33 40 33 . 50 . 16 . . 197 20 89 38 . . . . 16 31 . 129 117 Terrain Rammed . | . . . . . . . . . . . . . . . . . . . . . . . . . . . . . . . . . . . Walls Destroyed . | . . . . . . . . . . . . . . . . . . . . . . . . . . . . . . . . . . . Machines Disabled . | . . . . . . . . . . . . . . . . . . . . . . . . . . . . . . . . . . . Actions | -11 -10 -10 -9 -9 -9 -8 -8 -7 -7 -7 -7 -6 -6 -6 -6 -6 -5 -5 -5 -5 -5 -5 -4 -4 -4 -4 -4 -4 -3 -3 -3 -2 -2 -2 --------- Run | Jun Mat Min Mat Min Exi Min Mat Fac Low Low Zio Pro Fac Low Low Dat Pro Fac Ext Cet Arc Hub Fac Was Fac Upp Upp Zhi Pro Res Qua Res Tes Sec Total 25446 | 48 803 135 687 467 232 66 1782 1647 1674 438 1469 783 1224 366 646 116 793 825 1097 361 440 869 196 152 700 365 575 236 621 1114 1927 222 1539 831 Wait 2962 | . 32 9 78 68 . 1 274 337 180 4 92 30 163 3 91 . 118 48 99 86 19 55 4 34 109 2 73 . 37 166 344 35 250 121 Move 18621 | 38 671 106 481 381 232 59 1208 1117 1345 416 1335 686 926 291 492 99 624 648 853 234 312 661 157 89 496 321 461 187 451 653 1212 143 882 354 Hop . | . . . . . . . . . . . . . . . . . . . . . . . . . . . . . . . . . . . Pick Up 363 | 4 17 . 22 . . . 40 23 6 . 2 5 16 3 2 8 4 23 5 3 5 5 3 . 8 . . 11 4 53 28 3 32 28 Fast Attach 176 | 6 1 . 3 . . . 2 5 . . 4 1 3 3 . . 1 3 1 5 11 8 1 . 1 1 . 6 3 16 37 2 32 20 Attach 241 | . 3 1 4 . . . 15 9 3 . . 8 10 9 4 . 3 8 3 3 4 4 3 2 8 . . 3 14 38 18 1 22 41 Detach 98 | . . . . . . . 1 2 . . . 3 6 6 3 . . 1 . 2 3 3 1 . 5 . . 4 6 5 10 1 20 16 Swap 463 | . 7 8 21 2 . 2 49 36 17 1 . 16 21 14 8 1 8 20 19 5 13 36 8 4 12 3 5 2 10 33 37 5 31 9 Drop 362 | . 6 . 26 . . . 26 19 3 . 6 1 11 3 1 8 . 20 3 10 17 9 3 . 3 . . 14 5 19 60 4 62 23 Fire 1805 | . 66 11 46 15 . 4 159 60 72 . . 25 48 32 45 . 35 54 47 13 56 88 16 23 57 38 36 . 87 123 166 25 153 205 Melee 292 | . . . 6 . . . 7 39 48 17 30 8 20 2 . . . . 10 . . . . . . . . 9 3 7 15 3 54 14 Ram . | . . . . . . . . . . . . . . . . . . . . . . . . . . . . . . . . . . . Kick . | . . . . . . . . . . . . . . . . . . . . . . . . . . . . . . . . . . . Crush 2 | . . . . . . . 1 . . . . . . . . . . . . . . . . . . . . . . 1 . . . . Escape Stasis 34 | . . . . . . . . . . . . . . . . . . . 32 . . . . . . . . . 1 . . . 1 . Rewire 26 | . . . . 1 . . . . . . . . . . . . . . 25 . . . . . . . . . . . . . . . Trap 1 | . . . . . . . . . . . . . . . . . . . . . . . . . 1 . . . . . . . . . Miscellaneous . | . . . . . . . . . . . . . . . . . . . . . . . . . . . . . . . . . . . Route ------- -11/Junkyard -10/Materials (discovered 4 exits: *Mat x3 / *Min) -10/Mines -9/Materials (discovered 3 exits: *Mat / *Min x2) -9/Mines (discovered 3 exits: *Mat / [*Exi] / *Zio) -9/Exiles -8/Mines -8/Materials (discovered 2 exits: *Fac x2) -7/Factory (discovered 3 exits: Sto / *Low x2) -7/Lower Caves -7/Lower Caves (discovered 2 exits: *Fac / *Zio) -7/Zion (discovered 2 exits: *Dee / *Pro) -6/Proximity Caves -6/Factory (discovered 3 exits: Fac / *Low x2) -6/Lower Caves -6/Lower Caves -6/Data Miner -5/Proximity Caves -5/Factory (discovered 2 exits: *Upp / *Ext) -5/Extension (discovered 2 exits: *Fac / *Cet) -5/Cetus (discovered 2 exits: *Fac / *Arc) -5/Archives (discovered 3 exits: *Fac / *Hub x2) -5/Hub_04(d) (discovered 4 exits: *Fac x4) -4/Factory (discovered 2 exits: *Res / *Upp) -4/Waste -4/Factory -4/Upper Caves -4/Upper Caves -4/Zhirov -3/Proximity Caves -3/Research (discovered 3 exits: *Res / *Qua x2) -3/Quarantine -2/Research -2/Testing -2/Section 7 History --------- Turn | Location | Event 43 | -11/Junkyard | Discovered new exit (range 14) 73 | -11/Junkyard | Entered Materials 189 | -10/Materials | Identified exit to Mines 304 | -10/Materials | Build established: Mutant 450 | -10/Materials | Discovered new exit (range 16) 726 | -10/Materials | Discovered new exit (range 5) 920 | -10/Materials | Discovered new exit (range 9) 1094 | -10/Materials | Entered Mines 1095 | -10/Mines | Assembled infested the area 1100 | -10/Mines | Assisted by a Guerilla fighting off Assembled 1258 | -10/Mines | Discovered new exit (range 8) 1268 | -10/Mines | Entered Materials 1268 | -9/Materials | Evolved 2 slots: Utility x2 1269 | -9/Materials | Identified exit to Mines 1414 | -9/Materials | Destroyed 11 combat bots 1571 | -9/Materials | Discovered new exit (range 12) 2202 | -9/Materials | Entered Mines 2229 | -9/Mines | Discovered new exit (range 3) 2331 | -9/Mines | Learned Materials emergency access door positions 2361 | -9/Mines | Learned location of Storage (-7) 2399 | -9/Mines | Excavation squad dispatched 2399 | -9/Mines | A large section of the Mines collapsed 2494 | -9/Mines | A Derelict revealed a hidden shortcut to a safe place 2554 | -9/Mines | Received a Rocket Launcher from a helpful Derelict 2880 | -9/Mines | Deemed a non-threat by the Exiles lab entrance 2880 | -9/Mines | Discovered new exit (range 5) 2886 | -9/Mines | Entered Exiles 2924 | -9/Exiles | Met 8R-AWN 2948 | -9/Exiles | Met EX-HEX 3026 | -9/Exiles | Met EX-DEC 3095 | -9/Exiles | Met EX-BIN 3218 | -9/Exiles | Discovered new exit (range 14) 3234 | -9/Exiles | Entered Mines 3326 | -8/Mines | Discovered new exit (range 7) 3338 | -8/Mines | Entered Materials 3338 | -8/Materials | Evolved 2 slots: Propulsion x1, Utility x1 3605 | -8/Materials | Discovered new exit (range 16) 3740 | -8/Materials | Lost 5 parts (1n4u) 4585 | -8/Materials | Repaired Cld. Ion Engine 4616 | -8/Materials | Discovered new exit (range 3) 5448 | -8/Materials | Found Prototype Device 5766 | -8/Materials | Entered Factory 5766 | -7/Factory | Evolved 2 slots: Utility x2 5767 | -7/Factory | Identified Active Sensor Suite 6106 | -7/Factory | Build established: Assassin 7176 | -7/Factory | Identified exit to Storage 7176 | -7/Factory | Identified exit to Lower Caves 7366 | -7/Factory | Build established: Mutant 7870 | -7/Factory | Build established: Scavenger-Mutant 8135 | -7/Factory | Entered Lower Caves 8140 | -7/Lower Caves | Encountered a Warlord checkpoint 8606 | -7/Lower Caves | Spotted B-75 Beast 9750 | -7/Lower Caves | Destroyed B-75 Beast 9919 | -7/Lower Caves | Learned location of 1 exit from Factory 10139 | -7/Lower Caves | Discovered new exit (range 5) 10242 | -7/Lower Caves | Identified exit to Lower Caves 10398 | -7/Lower Caves | Entered another Lower Caves area 10413 | -7/Lower Caves | Discovered new exit (range 14) 10430 | -7/Lower Caves | Identified exit to Factory 10487 | -7/Lower Caves | Identified exit to Zion 10992 | -7/Lower Caves | Entered Zion 11044 | -7/Zion | Discovered new exit (range 11) 11057 | -7/Zion | Identified exit to Proximity Caves 11509 | -7/Zion | Given A8's code to call for help 11593 | -7/Zion | Found CR-A16's Pointy Stick 11726 | -7/Zion | Discovered new exit (range 4) 11729 | -7/Zion | Saw the warning signs outside the Deep Caves entrance 11730 | -7/Zion | Identified exit to Deep Caves 11881 | -7/Zion | Received a hallucinogenic algorithm 12124 | -7/Zion | Learned Factory trap positions 12323 | -7/Zion | Found Prototype Device 12323 | -7/Zion | Identified Bomb Factory No. 2 12913 | -7/Zion | Entered Proximity Caves 13000 | -6/Proximity Caves | Learned 4 Factory zone layouts 13103 | -6/Proximity Caves | Lost 3 parts (1n1u1w) 13345 | -6/Proximity Caves | Build established: Mutant 13626 | -6/Proximity Caves | Found Alien Artifact 13628 | -6/Proximity Caves | Identified Core Expander 13628 | -6/Proximity Caves | Installed Core Expander, added new Utility slot 13771 | -6/Proximity Caves | Attracted the attention of an 0b10 checkpoint 13995 | -6/Proximity Caves | Discovered exit to Factory (range 6) 14074 | -6/Proximity Caves | Build established: Scavenger-Mutant 14075 | -6/Proximity Caves | Entered Factory 14075 | -6/Factory | Evolved 2 slots: Power x1, Utility x1 14076 | -6/Factory | Identified exit to Lower Caves 14077 | -6/Factory | Identified exit to Factory 14079 | -6/Factory | Loaded intel: 92 trap records 14753 | -6/Factory | Build established: Mutant 15056 | -6/Factory | Build established: Assassin 15190 | -6/Factory | Repaired Hrd. Heavy Armor Plating 15232 | -6/Factory | Discovered exit to Lower Caves (range 6) 15847 | -6/Factory | Build established: Scavenger-Mutant 15936 | -6/Factory | Entered Lower Caves 16021 | -6/Lower Caves | Lost 3 parts (3u) 16339 | -6/Lower Caves | Encountered a Warlord checkpoint 16556 | -6/Lower Caves | Discovered new exit (range 8) 16567 | -6/Lower Caves | Identified exit to Lower Caves 16579 | -6/Lower Caves | Entered another Lower Caves area 17611 | -6/Lower Caves | Discovered new exit (range 4) 17615 | -6/Lower Caves | Identified exit to Data Miner 17670 | -6/Lower Caves | Entered Data Miner 17674 | -6/Data Miner | Discovered new exit (range 6) 17685 | -6/Data Miner | Identified exit to Proximity Caves 17707 | -6/Data Miner | Met Data Miner 17742 | -6/Data Miner | Learned location of Section 7 (-2) 17742 | -6/Data Miner | Acquired the access code to Warlord's prototype stash 17771 | -6/Data Miner | Received God Mode back door access code from Data Miner 17852 | -6/Data Miner | Entered Proximity Caves 18017 | -5/Proximity Caves | Escorted by Enhanced Grunt 18297 | -5/Proximity Caves | Received a Behemoth hack from an annoying Tinkerer 19015 | -5/Proximity Caves | Discovered exit to Factory (range 10) 19219 | -5/Proximity Caves | Entered Factory 19219 | -5/Factory | Accompanied by 1 ally 19219 | -5/Factory | Evolved 2 slots: Propulsion x1, Utility x1 19220 | -5/Factory | Identified exit to Extension 19390 | -5/Factory | Discovered new exit (range 9) 19403 | -5/Factory | Identified exit to Upper Caves 19921 | -5/Factory | Found Powered Armor 19925 | -5/Factory | Found Powered Armor 19937 | -5/Factory | Found Powered Armor 19939 | -5/Factory | Found Powered Armor 19954 | -5/Factory | Found Powered Armor 20025 | -5/Factory | Found Powered Armor 20027 | -5/Factory | Found Powered Armor 20461 | -5/Factory | Entered Extension 20530 | -5/Extension | Rescued a captive Derelict 20531 | -5/Extension | Rescued a captive Derelict 20603 | -5/Extension | Rescued a captive Derelict 20620 | -5/Extension | Rescued a captive Derelict 20620 | -5/Extension | Rescued a captive Derelict 20698 | -5/Extension | Rescued a captive Derelict 20805 | -5/Extension | Build established: Mutant 21297 | -5/Extension | Spotted B-75 Beast 21311 | -5/Extension | Disrupted transfer network 21312 | -5/Extension | Allies destroyed B-75 Beast 21327 | -5/Extension | Spotted B-75 Beast 21361 | -5/Extension | Destroyed B-75 Beast 21421 | -5/Extension | Rescued a captive Derelict 21423 | -5/Extension | Rescued a captive Derelict 21565 | -5/Extension | Rescued a captive Derelict 21595 | -5/Extension | Rescued a captive Derelict 21703 | -5/Extension | Rescued a captive Derelict 21703 | -5/Extension | Rescued a captive Derelict 21789 | -5/Extension | Rescued a captive Derelict 21789 | -5/Extension | Rescued a captive Derelict 21904 | -5/Extension | Rescued A7 21974 | -5/Extension | Discovered new exit (range 10) 21975 | -5/Extension | Discovered new exit (range 6) 21999 | -5/Extension | Identified exit to Cetus 22010 | -5/Extension | Entered Cetus 22010 | -5/Cetus | Accompanied by 9 allies (A7) 22015 | -5/Cetus | Acquired a Cetus Manufacturing Module code from A7 22030 | -5/Cetus | Spotted Cetus Guard 22030 | -5/Cetus | Spotted Cetus Guard 22033 | -5/Cetus | Allies destroyed Cetus Guard 22034 | -5/Cetus | Spotted Cetus Guard 22034 | -5/Cetus | Spotted Cetus Guard 22042 | -5/Cetus | Allies destroyed Cetus Guard 22045 | -5/Cetus | Allies destroyed Cetus Guard 22046 | -5/Cetus | Allies destroyed Cetus Guard 22095 | -5/Cetus | Discovered new exit (range 40) 22129 | -5/Cetus | Started Cetus Manufacturing Module 22154 | -5/Cetus | Manufactured an Enhanced Grunt 22179 | -5/Cetus | Manufactured an Enhanced Grunt 22196 | -5/Cetus | Build established: Commander-Mutant 22204 | -5/Cetus | Manufactured an Enhanced Grunt 22229 | -5/Cetus | Manufactured an Enhanced Grunt 22254 | -5/Cetus | Manufactured an Enhanced Grunt 22341 | -5/Cetus | Spotted Cetus Guard 22341 | -5/Cetus | Spotted Cetus Guard 22346 | -5/Cetus | Allies destroyed Cetus Guard 22346 | -5/Cetus | Spotted Cetus Guard 22352 | -5/Cetus | Allies destroyed Cetus Guard 22354 | -5/Cetus | Spotted Cetus Guard 22356 | -5/Cetus | Allies destroyed Cetus Guard 22371 | -5/Cetus | Allies destroyed Cetus Guard 22377 | -5/Cetus | Discovered new exit (range 16) 22384 | -5/Cetus | Met Revision 17 22511 | -5/Cetus | Identified exit to Archives 22518 | -5/Cetus | Entered Archives 22518 | -5/Archives | Accompanied by 6 allies (A7) 22689 | -5/Archives | Discovered new exit (range 15) 22701 | -5/Archives | Build established: Scavenger-Mutant 22773 | -5/Archives | Discovered new exit (range 16) 22805 | -5/Archives | Discovered new exit (range 14) 22890 | -5/Archives | Unable to access archive contents 23070 | -5/Archives | System corruption reached 10% 23441 | -5/Archives | Identified exit to Hub_04(d) 23451 | -5/Archives | Entered Hub_04(d) 23451 | -5/Hub_04(d) | Accompanied by 5 allies 23477 | -5/Hub_04(d) | Discovered new exit (range 15) 23515 | -5/Hub_04(d) | Identified exit to Factory 24119 | -5/Hub_04(d) | Discovered exit to Factory (range 10) 24452 | -5/Hub_04(d) | Discovered exit to Factory (range 24) 24460 | -5/Hub_04(d) | Discovered exit to Factory (range 29) 24651 | -5/Hub_04(d) | First assault squad dispatched 24830 | -5/Hub_04(d) | Network Hub disabled 24832 | -5/Hub_04(d) | Spotted Lightning 24832 | -5/Hub_04(d) | Spotted Lightning 24832 | -5/Hub_04(d) | Spotted Lightning 24842 | -5/Hub_04(d) | Network Hub disabled 24870 | -5/Hub_04(d) | Destroyed Lightning 24873 | -5/Hub_04(d) | Destroyed Lightning 24876 | -5/Hub_04(d) | Destroyed Lightning 24890 | -5/Hub_04(d) | Found Prototype Processor 24898 | -5/Hub_04(d) | Found Prototype Processor 24902 | -5/Hub_04(d) | Found Prototype Device 24902 | -5/Hub_04(d) | Identified Exp. Phase Shifter 24956 | -5/Hub_04(d) | Entered Factory 24956 | -4/Factory | Evolved 2 slots: Utility x2 25033 | -4/Factory | Discovered new exit (range 5) 25033 | -4/Factory | Discovered new exit (range 15) 25039 | -4/Factory | Identified exit to Research 25052 | -4/Factory | Identified exit to Upper Caves 25240 | -4/Factory | Sucked down chute 25240 | -4/Factory | Entered Waste 25255 | -4/Waste | EMP discharged 25309 | -4/Waste | Spotted C-40 Crusher 25336 | -4/Waste | Spotted C-40 Crusher 25353 | -4/Waste | Crushed by Compactor (1 part destroyed) 25355 | -4/Waste | EMP discharged 25355 | -4/Waste | Destroyed C-40 Crusher 25383 | -4/Waste | Spotted C-40 Crusher 25408 | -4/Waste | Spotted C-40 Crusher 25409 | -4/Waste | Spotted C-40 Crusher 25419 | -4/Waste | Spotted C-40 Crusher 25425 | -4/Waste | Crushed by Compactor (1 part destroyed) 25440 | -4/Waste | Discovered new exit (range 10) 25451 | -4/Waste | Identified exit to Factory 25452 | -4/Waste | Entered Factory 25671 | -4/Factory | Found Prototype Device 25672 | -4/Factory | Identified Adv. EM Disruption Field 25743 | -4/Factory | Fabricated Dual-blade Saw? 25894 | -4/Factory | Identified Exp. Targeting Computer (x2) 26076 | -4/Factory | System corruption reached 10% 26249 | -4/Factory | Repaired Powered Armor 26364 | -4/Factory | Discovered exit to Upper Caves (range 11) 26385 | -4/Factory | Entered Upper Caves 26705 | -4/Upper Caves | Attracted the attention of an 0b10 checkpoint 26863 | -4/Upper Caves | Discovered new exit (range 5) 26867 | -4/Upper Caves | Identified exit to Upper Caves 26891 | -4/Upper Caves | Entered another Upper Caves area 26995 | -4/Upper Caves | Learned Research terminal intel 27197 | -4/Upper Caves | Encountered a Warlord checkpoint 27248 | -4/Upper Caves | Attracted the attention of an 0b10 checkpoint 27552 | -4/Upper Caves | Discovered new exit (range 9) 27562 | -4/Upper Caves | Identified exit to Zhirov 27651 | -4/Upper Caves | Entered Zhirov 27651 | -4/Zhirov | Discovered new exit (range 5) 27655 | -4/Zhirov | Identified exit to Proximity Caves 27693 | -4/Zhirov | Met Zhirov 27733 | -4/Zhirov | Learned location of Quarantine (-3) 27733 | -4/Zhirov | Learned location of Testing (-2) 27733 | -4/Zhirov | Learned location of Command (-1) 27762 | -4/Zhirov | Zhirov requested help retrieving the SGEMP Prototype 27783 | -4/Zhirov | Found Alien Artifact 27783 | -4/Zhirov | Identified Integrated Dissipator 27783 | -4/Zhirov | Installed Integrated Dissipator, increased core heat dissipation (+20) 27800 | -4/Zhirov | Found Alien Artifact 27946 | -4/Zhirov | Entered Proximity Caves 27963 | -3/Proximity Caves | Spotted B-86 Titan 27964 | -3/Proximity Caves | Build established: Scavenger-Assassin 28036 | -3/Proximity Caves | Revealed the true nature of CR-A16's Pointy Stick 28039 | -3/Proximity Caves | Destroyed B-86 Titan 28285 | -3/Proximity Caves | Crushed by falling debris 28421 | -3/Proximity Caves | Spotter reported a threat 28520 | -3/Proximity Caves | Attracted the attention of an 0b10 checkpoint 28562 | -3/Proximity Caves | Build established: Scavenger-Skirmisher 28760 | -3/Proximity Caves | Discovered exit to Research (range 11) 28871 | -3/Proximity Caves | Entered Research 28871 | -3/Research | Evolved 2 slots: Utility x1, Weapon x1 28872 | -3/Research | Loaded intel: 22 terminal locations 28924 | -3/Research | Fabricated Powered Armor (x2) 28959 | -3/Research | Identified Transdimensional Reconstructor 28959 | -3/Research | Warped through subspace 28981 | -3/Research | Lost 8 parts (2p2n2u2w) 29222 | -3/Research | Build established: Scavenger-Assassin 29536 | -3/Research | Identified exit to Quarantine 29667 | -3/Research | Lost 5 parts (1n3u1w) 29758 | -3/Research | Lost 3 parts (1p2u) 29982 | -3/Research | Garrison activated, responded to threat 30175 | -3/Research | Lost 7 parts (1p2n2u2w) 30203 | -3/Research | Garrison activated, responded to threat 30234 | -3/Research | Discovered new exit (range 6) 30293 | -3/Research | Identified exit to Research 30387 | -3/Research | Lost 8 parts (1p2n3u2w) 30459 | -3/Research | Incoming investigation squad redirected 30467 | -3/Research | Fabricated Powered Armor (x2) 30512 | -3/Research | Lost 3 parts (1n1u1w) 30536 | -3/Research | Core integrity fell below 50% 30708 | -3/Research | Found Fusion Bomb Launcher 30744 | -3/Research | Incoming investigation squad redirected 30775 | -3/Research | Entered Quarantine 30904 | -3/Quarantine | Found Alien Artifact 30904 | -3/Quarantine | Identified Phase Redirector 31034 | -3/Quarantine | Found Unknown Device 31034 | -3/Quarantine | Identified Quantum Capacitor 31075 | -3/Quarantine | Found Alien Energy Cannon 31075 | -3/Quarantine | Identified Core Cannon 31256 | -3/Quarantine | Found Exp. Terrain Scanner 31312 | -3/Quarantine | Build established: Scavenger-Mutant 31587 | -3/Quarantine | Found Transdimensional Reconstructor 31590 | -3/Quarantine | Found Alien Artifact 31641 | -3/Quarantine | Identified Hpw. Transdimensional Reconstructor 31762 | -3/Quarantine | Repaired Broken Centrium Heavy Treads 31925 | -3/Quarantine | Found Alien Reactor 31971 | -3/Quarantine | System corruption reached 10% 32032 | -3/Quarantine | Found Alien Impact Weapon 32444 | -3/Quarantine | Warped through subspace 32860 | -3/Quarantine | Repaired Powered Armor 32959 | -3/Quarantine | Identified Matter Drive 32959 | -3/Quarantine | Identified Core Stripper 33025 | -3/Quarantine | Spotted Alpha 7 33074 | -3/Quarantine | Destroyed Alpha 7 33077 | -3/Quarantine | Found Exp. ECM Suite 33090 | -3/Quarantine | Found Exp. Targeting Computer 33096 | -3/Quarantine | Found Antimissile System 33103 | -3/Quarantine | Lost 4 parts (4u) 33105 | -3/Quarantine | Found Multirail 33124 | -3/Quarantine | Found Alien Launcher 33124 | -3/Quarantine | Identified Sigix Terminator 33286 | -3/Quarantine | Found Alien Slashing Weapon 33400 | -3/Quarantine | Entered Research 33400 | -2/Research | Evolved 2 slots: Utility x1, Weapon x1 33401 | -2/Research | Identified Sigix Broadsword 33743 | -2/Research | Discovered new exit (range 9) 33761 | -2/Research | Identified exit to Testing 33765 | -2/Research | Entered Testing 34002 | -2/Testing | Found Prototype Ballistic Cannon 34002 | -2/Testing | Identified Omega Cannon 34179 | -2/Testing | Spotted Striker 34182 | -2/Testing | Spotted Striker 34206 | -2/Testing | Found Prototype Device 34206 | -2/Testing | Identified Exp. Hardlight Generator 34410 | -2/Testing | Scanned by Researcher 34442 | -2/Testing | Found Prototype Protection 34442 | -2/Testing | Identified SHELL Armor 34514 | -2/Testing | Spotted PY-I4QJ05VKQF 34549 | -2/Testing | Destroyed PY-I4QJ05VKQF 34613 | -2/Testing | Found Prototype Device 34613 | -2/Testing | Identified Exp. Force Field 35106 | -2/Testing | Found Prototype Energy Cannon 35106 | -2/Testing | Identified Potential Cannon 35141 | -2/Testing | Found Prototype Energy Cannon 35141 | -2/Testing | Identified Hpw. Disruptor Cannon 35502 | -2/Testing | Found Prototype Hackware 35677 | -2/Testing | Found Prototype Hackware 35758 | -2/Testing | Identified Ghost Barrier 35839 | -2/Testing | Spotted PY-XH9TQLGK7Q 35904 | -2/Testing | Spotted Fortress 35993 | -2/Testing | Destroyed Fortress 35998 | -2/Testing | Identified System Mapper 36006 | -2/Testing | Found Prototype Device 36006 | -2/Testing | Identified Thermal Barrier 36015 | -2/Testing | Found Prototype Device 36015 | -2/Testing | Identified Exp. EM Disruption Field 36021 | -2/Testing | Found Prototype Reactor 36021 | -2/Testing | Identified Vortex Chain Reactor 36069 | -2/Testing | System corruption reached 10% 36265 | -2/Testing | First assault squad dispatched 36282 | -2/Testing | Incoming assault squad redirected 36325 | -2/Testing | Discovered new exit (range 6) 36334 | -2/Testing | Identified exit to Section 7 36337 | -2/Testing | Entered Section 7 36647 | -2/Section 7 | Spotted S7 Guard 36705 | -2/Section 7 | Destroyed S7 Guard 36755 | -2/Section 7 | Warped through subspace 36786 | -2/Section 7 | Lost 6 parts (2p2u2w) 36915 | -2/Section 7 | Garrison activated, responded to threat 36937 | -2/Section 7 | Found Alien Artifact 36937 | -2/Section 7 | Identified Integrated Mediator 36937 | -2/Section 7 | Installed Integrated Mediator, increased core attachment efficiency. 37132 | -2/Section 7 | First assault squad dispatched 37182 | -2/Section 7 | Incoming assault squad redirected 37224 | -2/Section 7 | Destroyed 8 combat bots 37363 | -2/Section 7 | Incoming assault squad redirected 37367 | -2/Section 7 | Incoming assault squad redirected 37430 | -2/Section 7 | Lost 3 parts (1n2u) 37511 | -2/Section 7 | Lost 9 parts (3p1n3u2w) 37598 | -2/Section 7 | Spotted Alpha 7 37613 | -2/Section 7 | Incoming assault squad redirected 37616 | -2/Section 7 | Lost 6 parts (1p2n2u1w) 37664 | -2/Section 7 | High security lockdown imminent 37697 | -2/Section 7 | Core integrity fell below 50% 37733 | -2/Section 7 | Spotted Alpha 7 37735 | -2/Section 7 | Core integrity fell below 20% 37743 | -2/Section 7 | Destroyed by G-73 Enforcer with Heavy Laser Last Messages --------------- 37732_ The unstable cave ceiling collapses. 37732_ Destroyed Wheel. 37732_ ALERT: Construction progress impeded, dispatching reinforcements to local area. 37732_ U-05 Engineer sends out distress signal. 37733_ Exp. Energy Well destroyed. 37733_ Critical hit (Burn: +37). 37734_ Fusion Bomb Launcher destroyed. 37735_ Omega Cannon destroyed. 37736_ G-73 Enforcer suffers critical hit (Meltdown). 37736_ Phase Gun melted. 37736_ Slug penetrates Wall. 37736_ Penetrated by Slug. 37736_ Enh. Nova Cannon destroyed. 37737_ Imp. Matter Compressor destroyed. 37740_ Quantum Rifle destroyed. 37741_ Q526-h heat short circuits Biometal Leg. 37742_ The unstable cave ceiling collapses. 37742_ Critical hit (Burn: +37). 37743_ Q526-h overheating. Map ----- +----------------------------------------------------+ | ?????????????????????? ?"????????????? ??????????? | | ??????????? ???" ???????"????#????? ??????##?????? | | ???? ????? ???"? ?????????????? ????? +?????????? | | ?????????? ??????????????" #????? ??????? ???????# | | ??????????????????? ???? ???????????? ???????????? | | ??????????"????? ?##?#???#????##??????????????##?? | | ???+??#??"???""????##??????##????#?????????#?????? | | ??????????? ? ????#??????##????#?#?#??#??????????? | | ? ????? ????? ?????????#?????#???#?#??#???????#?? | | ?? ??? ????????? ?#?#????#######????#?#?? ??????## | | ???????? ?? ?????#??????##?#?????#???? #??#???? | | ??????###???????##?#???#?#??#?#?????##?? ###??#?? | | ????#?????#? ???????#???##?#????#??# ### ##?????? | | ????? ?? ???##???#?#??#????###???## # #????#?? | | ??????????### ##?????##?#?###??### #% #??#?#?? | | ????#???"?# ????#???????#??# # ##?#?#?? | | ??????????# [ ""#??#?#???#??#?# # # #?#?###? | | ???????? ?# ""####???##???### # ##?#?#?? | | ???????? # ""#####???#?#?#?# = # ;###?#?# | | ????# ? ?# T ##???#?### # #?#??#?? | | ??? ? ????# "[ #?#?#?### = ##???#?# | | ??? ? ?# # ####### # ###### | | ? ??#????"#!/ [ / w 7 | | ????? ????#// % [ = g A% | | ? ? ?#????#// Q % g* = | | ??????#???# Q !% @ *g %= 7 | | ?? ??? ? # [ ;###### ! ####?## | | ??? ??????# w # ####?#?# " ###?#?#???# | | ? ??? ? ? # "" ##?#???#?# % " ###??##?#?? | | ??"""??"? # i" " # #####?##?# " ##?######?# | | "??""???" + """ # ########## ###########?# | | "???? "?" # # ##"""""### #######?###?# | | ??? ######### ## "T""### # ?? #### | | ?#??##?#?#?# ? ?# # # # "" ###? | | ??##??#??#?? ? ?# # [# # """" #### | | ?#?#???#####?? # # %# # """" ###? | | ??????##??##? ?? # # " [% "! + """" #### | | ????????#???? ?? # % # """ %# # """ #### | | ????#?#?#?????""" # # G !%!%#%%% # """" ?### | | ???###???### " " # # "" *% #! # ? #### | | ?#???#???#?#? """?# # "!!! ! # # #### | | ?????##???## ? # # % # ##+########## | | ?#??###?????#?#+?#" #####+#### # #### | | ????? ??? +% #### | | ? ??? ??? # """"" #### | | ???????? ? # """ #### | | ?????"? ?? #% " " #### | | ?? ??? ?######+######+####### ####!%= " ###? | | ??"" ??#? ?# ### #?##= "" #### | | ?????? ??# ? # ### ^ ####= #?## | +----------------------------------------------------+ Best States ------------- Heat Dissipation 169 Coolant Potential 100 Energy Generation 59 Energy Capacity 1615 Matter Stores 600 Matter Capacity 600 Sight Range 20 Robot Scan Range 20 Terrain Scan Range 30 Terrain Scan Density 110 ECM Strength 3 Jamming Range 14 Additional Mass Support 16 EM Shielding 4 Armor Coverage 2400 Resistance: TH 50 Resistance: EM 75 Power Shielding 90 Weapon Shielding 33 Point Defense Rating 240 Phase Shifting 20 Evasion (%) 60 Targeting Accuracy 20 Target Analysis 12 Recoil Reduction 4 Energy Filtering 30 Offensive Hacking 34 Defensive Hacking 20 Item Schematics ----------------- Bore Cannon | -7/Zion | Free 0b10 Decoder Chip [Looter] | -7/Zion | Archive Imp. Carbon-fiber Leg | -7/Zion | Archive Transmission Jammer | -7/Zion | Archive Imp. Recalibrator | -7/Zion | Archive Mak. Shrapnel Gun | -7/Zion | Archive 0b10 Decoder Chip [Generic] | -7/Zion | Archive Hvy. Battle Rifle | -7/Zion | Archive Adv. Terrain Scanner | -7/Zion | Archive Imp. Cooling System | -7/Zion | Archive 0b10 Decoder Chip [Scout] | -7/Zion | Archive Chainsword | -7/Zion | Archive Imp. Particle Charger | -7/Zion | Archive Gravmag System | -7/Zion | Archive Adv. Cooling System | -7/Zion | Archive Imp. Plasma Cutter | -6/Data Miner | Free Combat Drone Bay | -6/Data Miner | Free Enh. Armored Leg | -6/Data Miner | Free Powered Armor | -5/Factory | Scanalyzed Assault Drone Bay | -4/Zhirov | Free Exp. Optical Array | -4/Zhirov | Free Exp. Focal Shield | -2/Testing | Archive Centrium Greatsword | -2/Testing | Archive Electron Diverter | -2/Testing | Archive Hvy. Neutron Cannon | -2/Testing | Archive Adv. Kinecellerator | -2/Testing | Archive Robot Schematics ------------------ Y-72 Warden | -7/Zion | Archive T-07 Excavator | -7/Zion | Archive R-06 Scavenger | -7/Zion | Archive B-36 Bruiser | -7/Zion | Archive H-77 Assassin | -6/Data Miner | Free M-22 Extractor | -6/Data Miner | Free W-44 Eye | -6/Data Miner | Free B-60 Warrior | -6/Data Miner | Free S-27 Virus | -6/Data Miner | Free B-48 Gladiator | -6/Data Miner | Free H-66 Slayer | -6/Data Miner | Free Fabricated ------------ Dual-blade Saw | x2 | -4/Factory | Preloaded Powered Armor | x2 | -3/Research Powered Armor | x2 | -3/Research Alien Tech Used ----------------- Core Expander Integrated Dissipator Transdimensional Reconstructor Phase Redirector Core Cannon Matter Drive Sigix Terminator Sigix Broadsword Core Stripper High-powered Transdimensional Reconstructor Integrated Mediator Achievements -------------- None Challenges ------------ None Game ------ Seed StasisPlasmaDeconstructor Manual? 0 Play Time 10:08:17 Cumulative 1259.6 hours Start 2024.01.04 @ 05:41:48 End 2024.01.04 @ 19:14:38 Sessions 3 Manual Loads 0 Difficulty Rogue Special Mode None Game No. 455 Rogue 455 Adventurer 0 Explorer 0 Win Type - Total 26 Types 13/2/7/0/0/0/4/0/0 Lore% 90 Gallery% 92 Achievement% 85 Wizard Run 0 Options --------- ASCII 0 Keyboard 0 Movement Vi Keybinds 0 Fullscreen 0 Font 12/Crisp Map View 76x50 Tactical HUD 1 Map Filters NONE Filters NONE Steam 1 RUN: f3a92843-0cfd-473f-a546-361a8f0c76b9